Cogmind - Beta 16.1 @@@ ROGUE MODE // 2026.04.17 @ 01:03:21 Player: Cogchaaaan Result: Establishing 0b11! Performance ------------- Evolutions (9) 4500 Regions Visited (35) 7000 Robots Destroyed (983) 4915 Value Destroyed (61275) 61275 Prototype IDs (368) 7360 Alien Tech Used (9) 1800 Bonus (98508) 98508 TOTAL SCORE: 185358 Bonus ------- Triggered High Security 1000 High Alert Combat Kills 44082 Follower Combat Kills 392 Hunted by Unchained 1000 Registered with UFD 300 Met Optimus in HQ 500 Met Data Miner 300 Met Zhirov 300 Met Warlord at Base 500 MAIN.C Attacked Warlord 500 Warlord Defense Kills 4374 Scanned by Researcher 500 Met Optimus at Protoforge 1000 Recovered Sigix Corpse 2000 Destroyed MAIN.C Guards 500 Met MAIN.C 5000 Destroyed MAIN.C Shell 5000 Destroyed MAIN.C 10000 Met Architect 300 Started Test 138-B 500 Destroyed A8 300 Destroyed A6 400 Destroyed A5 500 Destroyed A4 700 Destroyed A3 800 Destroyed A2 1000 Destroyed Architect 15000 Win 3000 Friendly Fire -1240 Cogmind --------- Core Integrity 799/1600 Matter 290/300 Energy 491/500 System Corruption 1% Temperature Cool (4) Movement Walking (106) Location 0b11 Command Parts ------- > --- POWER (3) -------- Zero-point Reactor Zero-point Reactor Concept Zero-point Core > --- PROPULSION (6) --- Experimental Biometal Leg Experimental Biometal Leg Experimental Armored Exoskeleton > --- UTILITY (13) ----- Concept Phasing Heat Sink Concept Thermoelectric Network Concept Antigrav Storage Unit Spectral Analyzer Experimental Targeting Computer Concept Weapon Articulator Concept Core Analysis Suite Experimental Armor Integrity Analyzer Quantum Capacitor Concept Reaction Jets Experimental Phase Shifter AEGIS Remote Shield > --- WEAPON (4) ------- Enhanced Nova Cannon Concept Plasma Driver Sigix Broadsword > --- INVENTORY (25) --- Concept Zero-point Core High-density Centrium Leg Experimental Biometal Leg Experimental Energy Well (600) Concept Chromion Battery (800) Concept Weapon Articulator Experimental Core Analyzer Advanced Particle Charger Experimental Weapon Cycler Experimental Reaction Control System Experimental Phase Shifter Experimental Core Shielding Experimental Powered Armor Heavy Regenerative Plating Graphene Brace Experimental Focal Shield Thermal Barrier Concept Matter Streamer High-powered Transdimensional Reconstructor Long-range Gatling Laser Enhanced Nova Cannon A3's Sniper Rifle Sigix Corpse Peak State ------------ > --- POWER ------------ Experimental Antimatter Reactor Concept Zero-point Core Concept Zero-point Core > --- PROPULSION ------- Experimental Armored Exoskeleton Concept Biometal Exoskeleton > --- UTILITY ---------- Concept Thermoelectric Network Concept Antigrav Storage Unit Spectral Analyzer Experimental Targeting Computer Concept Weapon Articulator Concept Core Analysis Suite Improved Armor Integrity Analyzer Concept Reaction Jets Advanced Phase Shifter Experimental Focal Shield Concept Energy Mantle Concept Network Penetrator Concept Matter Streamer > --- WEAPON ----------- Perforator Sigix Broadsword > --- INVENTORY -------- Concept Zero-point Core High-density Centrium Leg Experimental Armored Exoskeleton Concept Phasing Heat Sink Concept Chromion Battery Concept NT7 Matterbank Concept Weapon Articulator Experimental Core Analyzer Femtoactuators Experimental Reaction Control System Concept Reaction Jets Graphene Brace Concept Energy Mantle Concept Antimissile System Transdimensional Reconstructor Null Cannon Concept Plasma Driver Concept Miniperforator Concept Miniperforator Concept Tiamat Rocket Array Experimental Jetlance Experimental Jetlance [Rating: 321] Favorites ----------- Power Concept Zero-point Core Engine Cooled Ion Engine Power Core Concept Zero-point Core Reactor Zero-point Reactor Propulsion Light Treads Treads Light Treads Leg Experimental Armored Exoskeleton Wheel Compact Wheel Flight Unit Improved VTOL Module Utility Spectral Analyzer Device Graphene Brace Storage Concept Antigrav Storage Unit Processor Spectral Analyzer Hackware Improved Hacking Suite Protection Hardened Medium Armor Plating Weapon Sigix Broadsword Energy Gun Medium Laser Energy Cannon Concept Plasma Driver Ballistic Gun Heavy Assault Rifle Ballistic Cannon Concept Miniperforator Launcher Mini Grenade Launcher Special Weapon Plasma Cutter Slashing Weapon Sigix Broadsword Piercing Weapon Experimental Jetlance Build | -11 -10 -10 -9 -9 -8 -8 -8 -8 -6 -6 -6 -6 -6 -6 -5 -5 -5 -5 -5 -5 -5 -4 -4 -4 -4 -4 -3 -3 -3 -2 -2 -2 -1 -1 -1 ------- Run | Yrd Mat Min Mat Min Mat Sto Rec Scr Fac Was Fac Low Low Dat Pro Fac Was Fac Upp Upp Zhi Pro Fac Upp Upp War Pro Res Qua Res Tes Frg Acc Com Ac0 Slots Evolved 18 | . . . 2 . 2 . . . 4 . . . . . . 2 . . . . . . 2 . . . . 2 . 2 . . 2 . . Power 1 | . . . . . . . . . . . . . . . . . . . . . . . . . . . . . . 1 . . . . . Propulsion 4 | . . . 1 . . . . . 2 . . . . . . . . . . . . . 1 . . . . . . . . . . . . Utility 11 | . . . . . 2 . . . 2 . . . . . . 2 . . . . . . 1 . . . . 2 . 1 . . 1 . . Weapon 2 | . . . 1 . . . . . . . . . . . . . . . . . . . . . . . . . . . . . 1 . . Parts Attached 251 | 8 12 4 24 1 17 7 4 1 18 . 1 . . . . 3 . 1 . . 2 2 5 . . 15 . 7 6 . 4 69 5 22 13 Power 29 | 1 1 1 3 . 3 1 . . 1 . . . . . . . . . . . . . . . . . . . 2 . . 14 . 2 . Engine 11 | 1 1 1 3 . 2 1 . . . . . . . . . . . . . . . . . . . . . . 2 . . . . . . Core 7 | . . . . . 1 . . . 1 . . . . . . . . . . . . . . . . . . . . . . 5 . . . Reactor 11 | . . . . . . . . . . . . . . . . . . . . . . . . . . . . . . . . 9 . 2 . Propulsion 56 | 2 4 1 9 . 7 1 3 . 7 . 1 . . . . 1 . . . . . . 1 . . 4 . 1 1 . . 6 . 4 3 Treads 22 | . 4 1 9 . 7 1 . . . . . . . . . . . . . . . . . . . . . . . . . . . . . Leg 12 | 2 . . . . . . . . . . . . . . . . . . . . . . . . . . . . . . . 3 . 4 3 Wheel 3 | . . . . . . . 3 . . . . . . . . . . . . . . . . . . . . . . . . . . . . Hover . | . . . . . . . . . . . . . . . . . . . . . . . . . . . . . . . . . . . . Flight 19 | . . . . . . . . . 7 . 1 . . . . 1 . . . . . . 1 . . 4 . 1 1 . . 3 . . . Utility 106 | 2 1 1 8 . 3 . 1 . 7 . . . . . . 1 . 1 . . 2 . 2 . . 6 . 4 2 . 2 41 3 14 5 Device 61 | 1 . . 1 . 1 . . . 2 . . . . . . . . . . . 1 . 2 . . 4 . 2 1 . 2 26 2 13 3 Storage 9 | 1 1 . 3 . . . . . . . . . . . . . . . . . . . . . . 1 . . . . . 2 . . 1 Processor 17 | . . . . . . . . . 2 . . . . . . 1 . . . . . . . . . 1 . . . . . 11 . 1 1 Hackware 6 | . . . . . . . 1 . 1 . . . . . . . . 1 . . 1 . . . . . . 1 . . . . 1 . . Protection 13 | . . 1 4 . 2 . . . 2 . . . . . . . . . . . . . . . . . . 1 1 . . 2 . . . Artifact . | . . . . . . . . . . . . . . . . . . . . . . . . . . . . . . . . . . . . Weapon 60 | 3 6 1 4 1 4 5 . 1 3 . . . . . . 1 . . . . . 2 2 . . 5 . 2 1 . 2 8 2 2 5 Energy Gun 3 | 2 . . . . . . . . . . . . . . . . . . . . . . . . . . . . . . . . . . 1 Energy Cannon 11 | . . . . . . . . . 1 . . . . . . . . . . . . 1 1 . . 2 . 1 . . 1 . 1 . 3 Ballistic Gun 21 | 1 4 1 4 1 3 4 . . . . . . . . . . . . . . . . . . . . . . . . . 2 . . 1 Ballistic Cannon 4 | . . . . . . . . . . . . . . . . . . . . . . . . . . . . . . . 1 1 1 1 . Launcher 5 | . 1 . . . . 1 . . 1 . . . . . . . . . . . . 1 . . . . . . . . . 1 . . . Special Weapon 8 | . 1 . . . . . . . 1 . . . . . . 1 . . . . . . 1 . . 3 . . . . . 1 . . . Impact Weapon . | . . . . . . . . . . . . . . . . . . . . . . . . . . . . . . . . . . . . Slashing Weapon 3 | . . . . . 1 . . 1 . . . . . . . . . . . . . . . . . . . . 1 . . . . . . Piercing Weapon 5 | . . . . . . . . . . . . . . . . . . . . . . . . . . . . 1 . . . 3 . 1 . Special Melee Weapon . | . . . . . . . . . . . . . . . . . . . . . . . . . . . . . . . . . . . . Unidentified Prototypes 41 | . . . 1 . . 3 . . . . . . 1 . . . . . . . 3 . . . . 8 . 1 1 . 2 16 . 3 2 Corrupted Parts 1 | . . . . . . . . . . . . . . . . . . . . . . . . . . . . . . . . . . 1 . System Corruption 3 | . . . . . . . . . . . . . . . . . . . . . . . . . . . . . . . . . . 3 . Parts Lost 39 | . 1 . 2 1 3 1 . . . . . . . . 1 1 . 1 . . . . . . . . . 4 3 . 2 11 1 3 4 Power 4 | . 1 . . . . . . . . . . . . . . . . . . . . . . . . . . . . . . 3 . . . Propulsion 7 | . . . . . 2 1 . . . . . . . . . . . . . . . . . . . . . 1 2 . . 1 . . . Utility 21 | . . . 1 . . . . . . . . . . . . . . 1 . . . . . . . . . 2 1 . 2 7 1 3 3 Weapon 7 | . . . 1 1 1 . . . . . . . . . 1 1 . . . . . . . . . . . 1 . . . . . . 1 Highest Loss Streak 4 | . 1 . 2 1 2 1 . . . . . . . . 1 1 . 1 . . . . . . . . . 4 2 . 1 4 1 2 1 To Critical Strikes 1 | . . . . . . . . . . . . . . . . . . . . . . . . . . . . . . . . . . . 1 Average Backups 18 | 3 8 10 13 20 23 24 23 23 10 10 10 10 10 10 10 9 10 9 10 10 10 9 9 10 10 14 14 13 13 13 13 15 21 20 22 Power 1 | . 1 1 1 1 2 2 2 2 1 1 1 1 1 1 1 1 1 1 1 1 1 1 1 1 1 1 1 1 1 1 1 1 1 1 1 Propulsion 2 | 1 3 2 4 6 5 5 5 4 1 1 1 2 2 2 2 1 2 2 3 3 3 3 2 2 2 2 2 2 2 2 2 2 1 1 2 Utility 8 | . 1 3 4 8 10 12 11 11 5 5 4 4 4 4 4 2 3 2 2 2 2 2 2 3 3 5 6 5 3 3 3 5 10 11 15 Weapon 4 | 1 2 3 3 4 5 5 5 3 1 2 2 2 2 2 2 2 2 2 2 2 2 1 2 1 1 3 3 3 3 4 3 5 6 4 3 Tool/Special . | . . . . . . . . . . . . . . . . . . . . . . . . . . . . . . . . . . . . Unused Backups 84 | . 1 1 3 1 2 5 2 4 2 . 1 . . . . 1 . 1 . . 1 1 1 . . 3 . 1 1 1 1 30 . 5 15 Power 6 | . 1 . . . 1 . . . . . . . . . . . . . . . . . . . . . . . . . . 2 . 1 1 Propulsion 17 | . . 1 . . . 2 2 . 1 . . . . . . 1 . . . . . . 1 . . . . 1 . 1 . 7 . . . Utility 34 | . . . . . 1 . . 3 . . 1 . . . . . . . . . 1 1 . . . 2 . . 1 . . 11 . 1 12 Weapon 23 | . . . 3 1 . 3 . 1 1 . . . . . . . . 1 . . . . . . . . . . . . . 9 . 3 1 Tool/Special 4 | . . . . . . . . . . . . . . . . . . . . . . . . . . 1 . . . . 1 1 . . 1 Average Slot Usage (%) 86 | . 98 100 99 99 98 99 99 80 92 100 100 100 95 88 92 90 83 81 83 83 75 77 82 85 85 85 85 83 84 77 76 81 75 79 79 Engine 4 | . 13 14 11 11 8 9 9 9 . . . . . . . . . . . . . . 1 10 10 10 10 9 5 . . . . . . Core 3 | . . . . . . . . . 5 6 6 6 6 6 6 5 5 5 5 5 5 5 4 . . . . . 2 8 8 6 7 5 3 Reactor 2 | . . . . . . . . . . . . . . . . . . . . . . . . . . . . . . . . 4 3 4 7 Treads 7 | . 25 28 33 33 26 27 21 . . . . . . . . . . . . . . . . . . . . . . . . . . . . Leg 3 | . 2 . . . . . . . . . . . . . . . . . . . . . . . . . . . . . . 1 7 8 11 Wheel 1 | . . . . . . . 5 27 . . . . . . . . . . . . . . . . . . . . . . . . . . . Flight 6 | . . . . . . . . . 32 33 33 33 31 31 31 26 22 22 22 22 22 22 25 25 25 25 25 22 20 16 16 13 . . . Device 17 | . 14 8 . . 6 9 9 9 12 13 13 13 12 12 12 15 16 11 11 11 11 11 14 15 15 15 15 16 18 18 22 22 25 27 28 Storage 6 | . 14 14 11 11 9 9 9 9 6 6 6 6 6 6 6 5 5 5 5 5 5 5 5 5 5 5 5 4 4 4 4 4 3 3 3 Processor 9 | . . . . . . . . . 5 6 6 6 6 6 6 11 11 11 11 11 11 11 10 10 10 10 10 9 9 8 8 18 15 14 12 Hackware 2 | . . . . . . . 8 9 6 6 6 6 6 6 6 5 5 8 11 11 10 11 10 10 10 10 10 12 13 12 8 . 3 1 . Protection 4 | . . 5 10 11 18 17 9 9 5 6 6 6 6 6 6 4 5 5 5 5 4 5 5 5 5 5 5 4 4 4 4 . . . . Energy Cannon 1 | . . . . . . . . . . . . . . . . . . . . . . . . . . . . . . . . . . 2 7 Ballistic Gun 7 | . 12 28 32 32 26 26 26 . . . . . . . . . . . . . . . . . . . . . . . . 1 . . . Slashing Weapon 2 | . . . . . . . . 8 6 6 6 5 6 6 5 4 5 4 5 5 5 5 5 5 5 5 5 . . 4 4 3 3 2 3 Peak Build Rating 321 | 7 10 13 21 19 28 36 35 27 63 61 64 65 63 63 65 80 74 76 75 75 76 82 95 98 99 106 107 124 155 164 177 301 321 318 301 Average Rating 160 | 5 9 11 15 18 26 34 34 25 52 61 62 63 62 61 62 75 74 73 75 75 73 76 89 91 93 96 101 113 124 158 160 229 317 306 295 On Entrance 86 | . 7 10 13 19 19 28 35 23 26 61 61 57 57 63 63 55 74 74 75 75 75 76 76 91 93 93 99 101 116 155 163 157 293 316 297 Avg Prop Armor Cover (%) 4 | . . . . . 4 . . . . . . . . . . . . . . . . . . . . . . . . . . . . . . Naked Turns . | . . . . . . . . . . . . . . . . . . . . . . . . . . . . . . . . . . . . Heaviest Build 143 | 12 18 25 104 104 120 114 114 99 29 29 29 29 29 29 29 31 29 29 28 28 27 27 31 39 39 47 39 45 51 52 53 116 123 143 142 Greatest Support 188 | 20 46 46 66 60 60 60 60 48 29 29 31 31 31 31 31 31 30 32 32 32 32 32 39 39 39 40 40 49 58 58 58 188 158 158 156 Greatest Overweight (x) 2 | . . . 1 1 2 1 2 2 . . . . . . . . . . . . . . . . . 1 . . . . . . . 1 . Average Overweight (x) . | . . . . 1 1 1 1 2 . . . . . . . . . . . . . . . . . . . . . . . . . . . Largest Inventory Capacity 25 | 8 10 10 25 25 25 25 25 25 25 10 10 10 10 10 10 10 10 10 10 10 10 10 10 15 15 15 15 15 15 15 15 25 25 25 25 Average Capacity 20 | 6 9 10 17 25 25 25 25 25 10 10 10 10 10 10 10 10 10 10 10 10 10 10 10 10 15 15 15 15 15 15 15 20 25 25 25 Most Carried 25 | 5 10 10 19 22 25 25 25 25 22 10 10 10 10 10 10 10 10 10 10 10 10 10 10 11 11 15 15 15 15 15 15 25 25 25 25 Average Carried 19 | 3 8 9 13 20 23 24 23 23 10 10 9 9 10 10 10 8 10 9 10 10 9 9 9 10 10 14 14 14 14 13 14 17 24 23 23 Final Capacity 25 | 8 10 10 25 25 25 25 25 25 10 10 10 10 10 10 10 10 10 10 10 10 10 10 10 15 15 15 15 15 15 15 15 25 25 25 25 Final Carried 25 | 5 10 10 19 22 25 24 22 22 10 10 10 10 10 10 10 10 10 10 10 10 10 10 10 11 11 14 15 15 13 14 14 25 23 24 24 Class Distribution -------------------- 23% | Mutant 14% | Hacker-Mutant 12% | Scavenger-Tank 10% | Scavenger-Sprinter 6% | Scavenger-Mutant 6% | Tank 6% | Hacker-Scout 5% | Scout 4% | Gladiator 4% | Hacker-Sprinter Dominant Class ---------------- Mutant | -10/Materials Mutant | -10/Mines Scavenger-Tank | -9/Materials Scavenger-Tank | -9/Mines Scavenger-Tank | -8/Materials Commander-Tank | -8/Storage Tank | -8/Recycling Mutant | -8/Scraptown Scout | -6/Factory Scout | -6/Waste Scout | -6/Factory Scout | -6/Lower Caves Scout | -6/Lower Caves Scout | -6/Data Miner Scout | -5/Proximity Caves Scout | -5/Factory Scout | -5/Waste Hacker-Scout | -5/Factory Hacker-Scout | -5/Upper Caves Hacker-Scout | -5/Upper Caves Hacker-Scout | -5/Zhirov Hacker-Scout | -4/Proximity Caves Hacker-Scout | -4/Factory Hacker-Scout | -4/Upper Caves Hacker-Scout | -4/Upper Caves Hacker-Sprinter | -4/Warlord Hacker-Scout | -3/Proximity Caves Hacker-Sprinter | -3/Research Hacker-Sprinter | -3/Quarantine Hacker-Sprinter | -2/Research Hacker-Ninja | -2/Testing Scavenger-Sprinter | -2/Protoforge Hacker-Mutant | -1/Access Hacker-Mutant | -1/Command Scavenger-Mutant | -1/Access_0 Resources | -11 -10 -10 -9 -9 -8 -8 -8 -8 -6 -6 -6 -6 -6 -6 -5 -5 -5 -5 -5 -5 -5 -4 -4 -4 -4 -4 -3 -3 -3 -2 -2 -2 -1 -1 -1 ----------- Run | Yrd Mat Min Mat Min Mat Sto Rec Scr Fac Was Fac Low Low Dat Pro Fac Was Fac Upp Upp Zhi Pro Fac Upp Upp War Pro Res Qua Res Tes Frg Acc Com Ac0 Matter Collected 36459 | 280 180 131 1055 170 1111 636 292 10 280 . . 90 96 . 112 . . 203 109 24 70 180 50 103 42 575 20 140 10 105 80 5547 15546 8902 310 Remotely 22721 | . . . . . . . . . . . . . . . . . . . . . . . . . . . . . . . . 2298 13442 6981 . Salvage Created 64796 | 159 288 249 1585 407 1539 1009 616 . 283 . . 50 69 . 59 40 . 108 . . 87 336 34 6 . 772 . 173 125 173 144 7656 26135 17871 4823 Parts 2461 | 9 26 26 106 40 90 52 32 . 7 . . 1 1 . 5 5 . 6 . . . 20 2 . . 29 . 9 3 6 10 372 855 511 238 Haulers Intercepted 22 | . 1 . 4 . 3 6 . . . . . . . . . . . 1 . . . . . . . . . . . . . . 7 . . Recyclers Shooed 8 | . . . 1 . 1 3 2 . . . . . . . . . . . . . . . . . . . . . . . . . . 1 . Parts Field Recycled . | . . . . . . . . . . . . . . . . . . . . . . . . . . . . . . . . . . . . Retrieved Matter . | . . . . . . . . . . . . . . . . . . . . . . . . . . . . . . . . . . . . Parts Self-Destructed 13 | . . . . . . . . . . . . . 1 . 2 . . . . . . 10 . . . . . . . . . . . . . Prevented . | . . . . . . . . . . . . . . . . . . . . . . . . . . . . . . . . . . . . Parts Restored 10 | . . . . . . . . . . . . . . . . . . . . . . . . . . . . . . . . 10 . . . Faulty 10 | . . . . . . . . . . . . . . . . . . . . . . . . . . . . . . . . 10 . . . Kills | -11 -10 -10 -9 -9 -8 -8 -8 -8 -6 -6 -6 -6 -6 -6 -5 -5 -5 -5 -5 -5 -5 -4 -4 -4 -4 -4 -3 -3 -3 -2 -2 -2 -1 -1 -1 ------- Run | Yrd Mat Min Mat Min Mat Sto Rec Scr Fac Was Fac Low Low Dat Pro Fac Was Fac Upp Upp Zhi Pro Fac Upp Upp War Pro Res Qua Res Tes Frg Acc Com Ac0 Combat Hostiles Destroyed 831 | . 9 6 27 16 22 11 4 . . . . . . . 5 2 . . . . . 9 . 2 . 33 . . . . . 134 305 197 49 Melee 36 | . . . . . . . . . . . . . . . . . . . . . . . . . . . . . . . . 31 . 5 . Guns 114 | . 6 6 27 16 22 11 4 . . . . . . . . . . . . . . . . . . . . . . . . 22 . . . Cannons 569 | . . . . . . . . . . . . . . . . . . . . . . . . . . 1 . . . . . 52 305 186 25 AOE 82 | . 3 . . . . . . . . . . . . . 5 2 . . . . . 9 . 2 . 32 . . . . . 29 . . . Classes Destroyed 29 | 3 4 2 1 . 1 . . . . . . . . . . 1 . . . . . . . . . 6 . . . . 1 7 1 2 . Worker 29 | 1 . 1 1 1 . . . . . . . . . . . . . 1 . . . . . . . . . . . 1 . . 14 9 . Builder 26 | . . 2 2 . . . 2 . . . . . . . . . . . . . . . . . . . . 2 . . 3 . 15 . . Tunneler 8 | 2 . 1 1 1 . . . . . . . . . . . . . . . . . . . . . . . . . . . . 3 . . Hauler 23 | . 1 . 4 . 3 6 . . . . . . . . . . . 1 . . . . . . . . . . . . . 1 7 . . Recycler 25 | 1 . . 1 . 1 2 6 . 2 . . . . . . . . . . . . . . . . . . 1 1 1 . . 4 5 . Carrier 1 | . . . . . . . . . . . . . . . . . . . . . . . . . . . . . . . . . . 1 . Mechanic 26 | . . . . . . . . . . . . . . . . . . . . . . . . . . . . . . . . 2 16 8 . Operator 4 | . . . . . . . . . . . . . . . . . . . . . . . . . . . . . . . . . 2 2 . Drone 22 | . . . . . . . . . . . . . . . . . . . . . . . . . . . . . . . . 22 . . . Watcher 31 | . 3 . 5 . 5 1 . . . . . . . . . . . . . . . . 1 . . . . . . . . 1 10 5 . Swarmer 74 | . 6 3 5 11 2 . . . . . . . . . 5 . . . . . . 9 . 2 . 3 . . . . . 21 7 . . Cutter 5 | . . . . . . . . . . . . . . . . 2 . . . . . . . . . . . . . . . . 3 . . Saboteur 36 | . . . . . . . . . . . . . . . . . . . . . . . . . . 2 . . . . . 3 18 13 . Grunt 214 | . 3 2 11 4 13 5 . . . . . . . . . . . . . . . . . . . 15 . . . . . 10 77 74 . Brawler 39 | . . . . . . . . . . . . . . . . . . . . . . . . . . 2 . . . . . 7 14 16 . Duelist 36 | . . . 1 1 . . . . . . . . . . . . . . . . . . . . . . . . . . . 4 17 13 . Protector 33 | . . . . . . . . . . . . . . . . . . . . . . . . . . . . . . . . 4 17 12 . Researcher 6 | . . . . . . . . . . . . . . . . . . . . . . . . . . . . . . . 1 5 . . . Sentry 51 | . . 1 10 . 6 6 4 . . . . . . . . . . . . . . . . . . . . . . . . 9 10 5 . Specialist 6 | . . . . . . . . . . . . . . . . . . . . . . . . . . 3 . . . . . . 2 1 . Hunter 54 | . . . . . 1 . . . . . . . . . . . . . . . . . . . . 5 . . . . . 10 29 9 . Programmer 86 | . . . . . . . . . . . . . . . . . . . . . . . . . . 2 . . . . . 6 54 24 . Heavy 2 | . . . . . . . . . . . . . . . . . . . . . . . . . . . . . . . . . . 2 . M Guard 2 | . . . . . . . . . . . . . . . . . . . . . . . . . . . . . . . . . . 2 . Enhanced Grunt 32 | . . . . . . . . . . . . . . . . . . . . . . . . . . . . . . . . . . . 32 Enhanced Sentry 2 | . . . . . . . . . . . . . . . . . . . . . . . . . . . . . . . . . . . 2 Enhanced Hunter 8 | . . . . . . . . . . . . . . . . . . . . . . . . . . . . . . . . . . . 8 Hotshot 1 | . . . . . . . . . . . . . . . . . . . . . . . . . . . . . . . . 1 . . . Decapitator 7 | . . . . . . . . . . . . . . . . . . . . . . . . . . . . . . . . 7 . . . Immortal 5 | . . . . . . . . . . . . . . . . . . . . . . . . . . . . . . . . 5 . . . Combat Programmer 2 | . . . . . . . . . . . . . . . . . . . . . . . . . . . . . . . . . . 2 . Investigator 4 | . . . . . . . . . . . . . . . . . . . . . . . . . . . . . . . . . 2 2 . Striker 46 | . . . . . . . . . . . . . . . . . . . . . . . . . . 1 . . . . . 7 28 10 . Executioner 54 | . . . . . . . . . . . . . . . . . . . . . . . . . . . . . . . . 13 29 12 . Alpha 7 2 | . . . . . . . . . . . . . . . . . . . . . . . . . . . . . . . . 2 . . . V-Series 2 | . . . . . . . . . . . . . . . . . . . . . . . . . . . . . . . . 2 . . . Scrapoid 1 | . . . . . . . . . . . . . . . . . . . . . . . . . . . . . . . . 1 . . . Thug 1 | . . . . . . . . . . . . . . . . . . . . . . . . . . 1 . . . . . . . . . Savage 1 | . . . . . . . . . . . . . . . . . . . . . . . . . . 1 . . . . . . . . . Mutant 1 | . . . . . . . . . . . . . . . . . . . . . . . . . . 1 . . . . . . . . . Best Kill Streak 54 | 2 5 4 9 5 6 3 2 . 1 . . . . . 5 2 . 2 . . . 9 1 2 . 9 . 3 1 2 3 16 54 36 6 Combat Bots Only 46 | . 4 3 5 4 6 3 1 . . . . . . . 5 2 . . . . . 9 . 2 . 9 . . . . . 15 46 26 6 Max Kills in Single Turn 6 | 1 1 1 2 2 1 1 2 . 1 . . . . . 3 1 . 1 . . . 4 1 1 . 5 . 1 1 1 1 6 5 4 1 Gunslinging 1 | . . . . 1 . . . . . . . . . . . . . . . . . . . . . . . . . . . . . . . Exploded 6 | . 1 . . . . . . . . . . . . . 3 1 . . . . . 4 . 1 . 5 . . . . . 6 . . . Melee 1 | . . . . . . . . . . . . . . . . . . . . . . . . . . . . . . . . 1 . 1 . Uniques/NPCs Destroyed 9 | . . . . . . . . . . . . . . . . . . . . . . . . . . . . . . . . . . 2 7 MAIN.C Shell (-1/Command) MAIN.C (-1/Command) A8 (-1/Access_0) A6 (-1/Access_0) A5 (-1/Access_0) A2 (-1/Access_0) A4 (-1/Access_0) Architect (-1/Access_0) A3 (-1/Access_0) Combat | -11 -10 -10 -9 -9 -8 -8 -8 -8 -6 -6 -6 -6 -6 -6 -5 -5 -5 -5 -5 -5 -5 -4 -4 -4 -4 -4 -3 -3 -3 -2 -2 -2 -1 -1 -1 -------- Run | Yrd Mat Min Mat Min Mat Sto Rec Scr Fac Was Fac Low Low Dat Pro Fac Was Fac Upp Upp Zhi Pro Fac Upp Upp War Pro Res Qua Res Tes Frg Acc Com Ac0 Hostile Shots Fired 2829 | . 56 30 84 39 98 14 10 . . . . . . . 7 9 . 4 . . . 16 4 7 3 37 . 20 42 27 42 350 713 429 788 Missed 1655 | . 15 7 23 7 22 5 1 . . . . . . . 3 6 . 2 . . . 9 4 7 2 28 . 8 19 20 21 186 460 261 539 Intercepted 11 | . . . . . . . . . . . . . . . . . . . . . . . . . . . . . . . . . . 11 . Hits 1174 | . 41 23 61 32 76 9 9 . . . . . . . 4 3 . 2 . . . 7 . . 1 9 . 12 23 7 21 164 253 168 249 Melee 48 | . . . 4 1 . . . . . . . . . . . 2 . . . . . . . . . . . . . . . 13 24 3 1 Projectile 1126 | . 41 23 57 31 76 9 9 . . . . . . . 4 1 . 2 . . . 7 . . 1 9 . 12 23 7 21 151 229 165 248 AOE 9 | . . . . . . . . . . . . . . . . 1 . . . . . . . . . . . . . . . 3 2 3 . Critical Strikes 74 | . . 1 1 . 1 1 1 . . . . . . . . 1 . . . . . . . . . 1 . . . . . 19 20 6 22 Actively Blocked 54 | . . . . . . . . . . . . . . . . . . . . . . . . . . 1 . . . . . 19 18 6 10 Part Disruptions 9 | . . . . . . . . . . . . . . . . . . . . . . . . . . . . . . . . . 2 5 2 Actively Blocked 2 | . . . . . . . . . . . . . . . . . . . . . . . . . . . . . . . . . . . 2 Damage Taken 17941 | . 389 249 975 310 1361 131 135 . 48 . . . . . 69 116 . 137 . . . 106 . . 28 222 . 281 325 172 413 3976 2589 1976 3933 Core 1702 | . 44 34 128 51 289 . . . . . . . . . 15 6 . 24 . . . 42 . . . 71 . 19 47 . 37 287 153 70 385 Absorbed by Shields 8739 | . . . . . . . . . . . . . . . . . . . . . . . . . . . . . . . . 536 2513 1861 3829 Redirected to Shielding 160 | . . . . . . . . . . . . . . . . . . . . . . . . . . . . . . . . 160 . . . Ignored by Resistances 3950 | . . . . . . . . . . . . . . . . . . . . . . . . . . . . . . . . 944 1773 1084 149 Regen/Repaired (Parts) 6860 | . . . 52 . . 203 . . . . . . . . . . . . . . . . . . . 21 . . . 72 206 2090 1280 1019 1917 Core Remaining (%) 76 | 100 . 68 . 55 . . . 47 . . . . . . 98 . . . . . . 85 . . . . 93 . 94 . . 77 . . 49 Volleys Fired 1675 | 7 23 15 83 19 87 43 21 . 10 . 1 3 . . 11 8 . 3 . . . 11 2 7 4 33 4 9 4 . 5 268 347 256 391 Largest 3 | 2 2 2 3 3 3 3 3 . 1 . 1 1 . . 1 1 . 1 . . . 1 1 1 1 1 1 1 1 . 1 1 1 2 2 Hottest 260 | 90 90 40 69 69 69 75 75 . 85 . 85 85 . . 85 85 . 85 . . . 90 105 105 105 100 90 113 113 . 130 100 140 140 260 Shots Fired 2376 | 14 42 30 248 55 251 129 63 . 10 . 1 3 . . 11 8 . 3 . . . 11 2 7 4 33 4 9 4 . 5 268 352 416 393 Gun 986 | 14 39 30 246 55 251 129 63 . . . . . . . . . . . . . . . . . . . . . . . . 159 . . . Cannon 1299 | . . . . . . . . . 7 . 1 3 . . 8 5 . 3 . . . 1 2 4 4 2 4 9 4 . 5 76 352 416 393 Launcher 71 | . 3 . 2 . . . . . 3 . . . . . 3 3 . . . . . 10 . 3 . 15 . . . . . 29 . . . Special 20 | . . . . . . . . . . . . . . . . . . . . . . . . . . 16 . . . . . 4 . . . Kinetic 1705 | . . 30 246 55 251 129 63 . . . . . . . . . . . . . . . . . . . . . . . . 235 350 346 . Thermal 573 | 14 39 . . . . . . . 7 . 1 3 . . 8 5 . 3 . . . 1 2 4 4 . 4 7 4 . 5 . 2 70 390 Explosive 89 | . 3 . 2 . . . . . 3 . . . . . 3 3 . . . . . 10 . 3 . 29 . . . . . 33 . . . Electromagnetic 3 | . . . . . . . . . . . . . . . . . . . . . . . . . . . . . . . . . . . 3 Entropic 4 | . . . . . . . . . . . . . . . . . . . . . . . . . . 2 . 2 . . . . . . . Robot Hit Streak 58 | 5 8 6 28 11 21 11 14 . . . . . . . . . . . . . . 1 . . . 8 . . . . . 58 42 50 19 Robot Miss Streak 9 | 1 3 4 3 7 6 3 3 . . . . . . . 1 2 . . . . . 3 . . . 1 . . . . . 6 9 6 5 Penetration Max 3 | . . . . . . . . . . . . . . . . . . . . . . . . . . . . . . . . 3 3 3 1 Secondary Targets 9 | . . 2 3 4 . . . . . . . . . . . . . . . . . . . . . . . . . . . . . . . Max Gunslinging Chain 1 | . . 1 1 1 . . . . . . . . . . . . . . . . . . . . . . . . . . . . . . . Capacitor 387 | . . . . . . . . . . . . . . . . . . . . . . . . . . . . . . . . . . 1 386 Shots Hit Robots 1874 | 9 27 18 151 30 169 80 40 . 2 . . 1 1 . . . . 11 . . 2 8 2 . . 11 . 3 1 2 6 301 349 355 295 Core Hits 3343 | 5 18 14 63 20 71 36 15 . 2 . . 1 1 . 6 3 . 4 . . 1 12 1 3 . 116 . 1 1 1 1 377 1492 941 137 Critical Kills 630 | . . 1 . . 2 . . . . . . . . . . . . . . . . . . . . . . . . . . 61 352 191 23 Critical Parts Destroyed 734 | . . . . . 3 1 . . . . . . . . . . . . . . . . . . . . . . . . . 68 448 214 . Critical Strikes 1457 | 1 2 1 . . 5 1 . . . . . . . . . . . 3 . . . 1 . . . 2 . . . . . 161 827 430 23 Burn 3 | 1 2 . . . . . . . . . . . . . . . . . . . . . . . . . . . . . . . . . . Meltdown 29 | . . . . . . . . . . . . . . . . . . . . . . . . . . . . . . . . . . 6 23 Destroy 1385 | . . 1 . . 5 1 . . . . . . . . . . . . . . . . . . . . . . . . . 142 827 409 . Sever 7 | . . . . . . . . . . . . . . . . . . 3 . . . 1 . . . 1 . . . . . 2 . . . Impale 32 | . . . . . . . . . . . . . . . . . . . . . . . . . . . . . . . . 17 . 15 . Sunder 1 | . . . . . . . . . . . . . . . . . . . . . . . . . . 1 . . . . . . . . . Melee Attacks 461 | . . . . . 2 2 . . 39 . 6 8 3 . 6 9 . 41 . . 2 9 16 21 14 17 10 13 12 10 22 139 5 54 1 Impact . | . . . . . . . . . . . . . . . . . . . . . . . . . . . . . . . . . . . . Slashing 324 | . . . . . 2 2 . . 39 . 6 8 3 . 6 9 . 41 . . 2 9 16 21 14 17 10 1 2 10 22 72 5 6 1 Piercing 137 | . . . . . . . . . . . . . . . . . . . . . . . . . . . . 12 10 . . 67 . 48 . Sneak Attacks 46 | . . . . . . . . . 2 . . . . . . . . 4 . . . . 2 . . . . 3 1 2 4 27 . 1 . Combat Hostiles 1 | . . . . . . . . . . . . . . . . . . . . . . . . . . . . . . . . . . 1 . Follow-up Attacks 14 | . . . . . . . . . . . . . . . . . . . . . . . . . . . . . . . . 5 . 9 . Damage Inflicted 86851 | 108 571 278 2298 507 2530 1470 733 . 131 . . 53 81 . 382 121 . 535 . . 129 975 138 142 . 10276 . 324 131 348 965 21362 7559 10628 24076 Guns 13177 | 108 294 256 2266 498 2520 1379 733 . . . . . . . . . . . . . . . . . . . . . . . . 5123 . . . Cannons 40749 | . . . . . . . . . . . . . . . . . . . . . . . . . . 167 . . . . . 998 7409 8178 23997 Explosions 18773 | . 277 . . . . . . . . . . . . . 382 121 . . . . . 576 . 142 . 9848 . . . . . 7340 87 . . Melee 13571 | . . . . . . . . . 131 . . 53 81 . . . . 535 . . 129 399 138 . . . . 324 131 348 965 7745 63 2450 79 Ramming 164 | . . 22 32 9 10 91 . . . . . . . . . . . . . . . . . . . . . . . . . . . . . Kinetic 25318 | . . 256 2266 498 2520 1379 733 . . . . . . . . . . . . . . . . . . . . . . . . 6121 7409 4136 . Thermal 28320 | 108 294 . . . . . . . . . . . . . . . . . . . . . . . . . . . . . . . . 4042 23876 Explosive 18686 | . 277 . . . . . . . . . . . . . 382 121 . . . . . 576 . 142 . 9848 . . . . . 7340 . . . Electromagnetic 208 | . . . . . . . . . . . . . . . . . . . . . . . . . . . . . . . . . 87 . 121 Impact . | . . . . . . . . . . . . . . . . . . . . . . . . . . . . . . . . . . . . Slashing 7814 | . . . . . . . . . 131 . . 53 81 . . . . 535 . . 129 399 138 . . 261 . . . 348 965 4265 63 367 79 Piercing 6174 | . . . . . . . . . . . . . . . . . . . . . . . . . . . . 324 131 . . 3636 . 2083 . Entropic 167 | . . . . . . . . . . . . . . . . . . . . . . . . . . 167 . . . . . . . . . Highest Corruption 26 | . . . 3 3 . . . . . 7 7 7 7 7 7 . 9 9 9 9 9 9 . . . . . . 1 . . 3 13 26 1 Average Corruption 7 | . . . 2 3 . . . . . 7 7 7 7 7 7 . 9 9 9 9 9 9 . . . . . . 1 . . 1 5 18 1 Corruption Purged 29 | . . . . . . . . . . . . . . . . . . . . . . . . . . . . . . . . . . 29 . Corruption Blocked . | . . . . . . . . . . . . . . . . . . . . . . . . . . . . . . . . . . . . Effects 399 | . . . 28 11 . . . . . . 6 6 2 2 5 . . 18 3 6 1 6 . . . . . . 2 . . 29 65 191 18 Message Errors 97 | . . . 5 2 . . . . . . 3 . . . 2 . . 2 1 2 . 2 . . . . . . . . . 8 15 50 5 Matter Fused 86 | . . . 3 2 . . . . . . 1 2 . . 1 . . 7 1 . . . . . . . . . . . . 6 16 46 1 Heat Flow Errors 43 | . . . 3 1 . . . . . . 1 1 . 1 . . . 2 . 1 . 2 . . . . . . . . . 2 5 23 1 Energy Discharges 50 | . . . 3 1 . . . . . . . 2 1 . 1 . . 1 . 3 . 1 . . . . . . . . . 3 8 20 6 Parts Rejected 2 | . . . . . . . . . . . . . . . . . . . . . . . . . . . . . 1 . . . 1 . . Parts Fused 3 | . . . . 1 . . . . . . . . . . . . . 1 . . . . . . . . . . . . . . 1 . . Data Loss (minor) 55 | . . . 5 4 . . . . . . 1 1 . 1 . . . 5 . . . 1 . . . . . . 1 . . 5 5 23 3 Data Loss (major) 24 | . . . 1 . . . . . . . . . 1 . 1 . . . 1 . . . . . . . . . . . . 3 6 10 1 Misfires 15 | . . . 5 . . . . . . . . . . . . . . . . . . . . . . . . . . . . . 6 4 . Alerts 8 | . . . 2 . . . . . . . . . . . . . . . . . 1 . . . . . . . . . . 2 . 2 1 Misdirections 4 | . . . . . . . . . . . . . . . . . . . . . . . . . . . . . . . . . 1 3 . Weapon Failures 12 | . . . 1 . . . . . . . . . . . . . . . . . . . . . . . . . . . . . 1 10 . Overload Shots . | . . . . . . . . . . . . . . . . . . . . . . . . . . . . . . . . . . . . Overflow Damage 5418 | . 13 . . . . . . . . . . . . . 20 . . 90 . . 46 193 . 3 . 189 . 100 . 153 703 3057 2 217 632 Projectiles 753 | . . . . . . . . . . . . . . . . . . . . . . . . . . . . . . . . 22 . 99 632 Explosions 441 | . 13 . . . . . . . . . . . . . 20 . . . . . . 39 . 3 . 189 . . . . . 175 2 . . Melee 4224 | . . . . . . . . . . . . . . . . . . 90 . . 46 154 . . . . . 100 . 153 703 2860 . 118 . Knockbacks 322 | . . . . . . . . . . . . . . . . . . . . . . . . . . . . . . . . 16 220 86 . Impact . | . . . . . . . . . . . . . . . . . . . . . . . . . . . . . . . . . . . . Kinetic 305 | . . . . . . . . . . . . . . . . . . . . . . . . . . . . . . . . 15 207 83 . Secondary 17 | . . . . . . . . . . . . . . . . . . . . . . . . . . . . . . . . 1 13 3 . Self-Inflicted Damage 441 | . 20 . . . . . . . . . . . . . . 21 . . . . . . . . . . . . . . . 376 24 . . Shots 14 | . 2 . . . . . . . . . . . . . . 1 . . . . . . . . . . . . . . . 10 1 . . Rammed 18 | . . 6 6 1 1 4 . . . . . . . . . . . . . . . . . . . . . . . . . . . . . Targets Rammed 23 | . . 7 7 2 1 6 . . . . . . . . . . . . . . . . . . . . . . . . . . . . . Kicked . | . . . . . . . . . . . . . . . . . . . . . . . . . . . . . . . . . . . . Crushed 5 | . . 1 1 1 . 2 . . . . . . . . . . . . . . . . . . . . . . . . . . . . . Highest Temperature 653 | 120 156 2 259 149 653 231 218 . 240 30 128 297 83 165 150 132 . 274 . 206 . 148 58 180 60 56 96 111 . 3 128 148 223 223 203 Average Temperature 82 | 56 64 2 27 32 157 75 64 . 76 16 37 42 34 70 42 29 . 86 . 91 . 63 28 55 28 34 30 36 . 2 49 85 79 114 119 Received Heat Transfer 2109 | . 78 69 300 42 531 72 63 . . . . . . . 9 9 . 9 . . . . . . . . . 54 . 27 63 409 145 116 113 Thermoelectric Energy+ 6104 | . . . . . . . . . . . . . . . . . . . . . . . . . . . . . . . . . 10 1486 4608 Effects 44 | . . . . . 31 1 . . 2 . . . . . . . . . . . . . . . . . . . . . . . . 2 8 Shutdowns 5 | . . . . . 5 . . . . . . . . . . . . . . . . . . . . . . . . . . . . . . Energy Bleed 8 | . . . . . 4 . . . . . . . . . . . . . . . . . . . . . . . . . . . . 1 3 Interference 16 | . . . . . 7 1 . . 2 . . . . . . . . . . . . . . . . . . . . . . . . 1 5 Matter Decay 2 | . . . . . 2 . . . . . . . . . . . . . . . . . . . . . . . . . . . . . . Short Circuit 4 | . . . . . 4 . . . . . . . . . . . . . . . . . . . . . . . . . . . . . . Damage (minor) 1 | . . . . . 1 . . . . . . . . . . . . . . . . . . . . . . . . . . . . . . Damage (major) 6 | . . . . . 6 . . . . . . . . . . . . . . . . . . . . . . . . . . . . . . Damage (core) 2 | . . . . . 2 . . . . . . . . . . . . . . . . . . . . . . . . . . . . . . Siege Activations . | . . . . . . . . . . . . . . . . . . . . . . . . . . . . . . . . . . . . Martial Activations . | . . . . . . . . . . . . . . . . . . . . . . . . . . . . . . . . . . . . Shielding Activations . | . . . . . . . . . . . . . . . . . . . . . . . . . . . . . . . . . . . . Robots Disrupted . | . . . . . . . . . . . . . . . . . . . . . . . . . . . . . . . . . . . . Combat Hostiles . | . . . . . . . . . . . . . . . . . . . . . . . . . . . . . . . . . . . . Robots Corrupted 1 | . . . . . . . . . . . . . . . . . . . . . . . . . . . . . . . . . . . 1 Combat Hostiles 1 | . . . . . . . . . . . . . . . . . . . . . . . . . . . . . . . . . . . 1 Parts Fried 8 | . . . . . . . . . . . . . . . . . . . . . . . . . . . . . . . . . 1 . 7 Impact Corruptions . | . . . . . . . . . . . . . . . . . . . . . . . . . . . . . . . . . . . . Robots Melted 29 | . . . . . . . . . . . . . . . . . . . . . . . . . . . . . . . . . . 6 23 Combat Hostiles 29 | . . . . . . . . . . . . . . . . . . . . . . . . . . . . . . . . . . 6 23 Parts Melted 92 | . 2 . . . . . . . . . . . . . . . . . . . . . . . . 1 . . . . . . 2 15 72 Heat Transferred 13051 | 371 953 . . . . . . . . . . . . . . . . . . . . . . . . . . . . . . . . 2560 9167 Parts Sabotaged 3 | . . . . . . . . . . . . . . . . . . . . . . . . . . . . . . . . . . 3 . Parts Stolen . | . . . . . . . . . . . . . . . . . . . . . . . . . . . . . . . . . . . . Parts Stripped . | . . . . . . . . . . . . . . . . . . . . . . . . . . . . . . . . . . . . Power Chain Reactions . | . . . . . . . . . . . . . . . . . . . . . . . . . . . . . . . . . . . . Alert | -11 -10 -10 -9 -9 -8 -8 -8 -8 -6 -6 -6 -6 -6 -6 -5 -5 -5 -5 -5 -5 -5 -4 -4 -4 -4 -4 -3 -3 -3 -2 -2 -2 -1 -1 -1 ------- Run | Yrd Mat Min Mat Min Mat Sto Rec Scr Fac Was Fac Low Low Dat Pro Fac Was Fac Upp Upp Zhi Pro Fac Upp Upp War Pro Res Qua Res Tes Frg Acc Com Ac0 Maximum Alert Level 5 | . . . 1 . 1 1 . . . . . . . . . . . . . . . . . . . . . 1 1 1 1 5 5 5 . Low Security (%) 41 | 100 100 100 64 100 75 95 100 . 100 100 100 . . . . 100 100 100 . . . . 100 . . . . 60 13 23 . . . . . Level 1 7 | . . . 35 . 24 4 . . . . . . . . . . . . . . . . . . . . . 39 86 76 100 1 . . . Level 2 2 | . . . . . . . . . . . . . . . . . . . . . . . . . . . . . . . . 11 . . . Level 3 3 | . . . . . . . . . . . . . . . . . . . . . . . . . . . . . . . . 16 . . . Level 4 11 | . . . . . . . . . . . . . . . . . . . . . . . . . . . . . . . . 58 . . . Level 5 16 | . . . . . . . . . . . . . . . . . . . . . . . . . . . . . . . . 11 20 58 . High Security 17 | . . . . . . . . . . . . . . . . . . . . . . . . . . . . . . . . . 79 41 . Max Security . | . . . . . . . . . . . . . . . . . . . . . . . . . . . . . . . . . . . . Sterilizations 1 | . . . . . . . . . . . . . . . . . . . . . . . . . . . . . . . . . 1 . . Peak Influence 10849 | 10 135 65 339 185 261 217 55 . 128 8 6 . . . . 72 20 29 . . . . 125 . . . . 389 295 396 379 3229 9249 10849 . Initial 5919 | . . . . 94 53 . . . . 8 5 . . . . 56 20 14 . . . . 91 . . . . . 216 165 222 202 1936 5919 . Average 1937 | 1 43 8 148 126 115 74 9 . 48 8 1 . . . . 38 20 7 . . . . 99 . . . . 155 225 224 287 1337 5078 8681 . Influence Increases 25424 | 20 292 184 974 395 728 769 300 . 257 . 11 5 5 . 140 133 . 196 . . . 235 168 55 . 859 . 485 219 301 377 4047 7743 5389 1137 Destroy 0b10 Robot/C 14800 | . 180 140 620 320 440 400 80 . . . . . . . 100 40 . . . . . 180 . 40 . 700 . . . . 20 2280 5540 3720 . Destroy 0b10 Robot/NC 1075 | 20 20 20 75 10 45 50 40 . 10 . . 5 5 . . . . 10 . . . 5 5 . . . . 15 5 10 15 150 355 205 . Destroy Leader 2314 | . 48 20 208 50 136 156 . . . . . . . . 10 10 . 2 . . . 20 2 . . . . . . . . 272 830 550 . Allied During Kill 162 | . . 4 17 . . 116 . . . . . . . . . . . . . . . . . . . 9 . . . . . 16 . . . Successful Hack 343 | . 25 . 14 . 12 16 14 . 57 . 4 . . . . 10 . 30 . . . . 56 . . . . 36 12 30 15 . 12 . . Select Force Hacks 150 | . . . . . . . 150 . . . . . . . . . . . . . . . . . . . . . . . . . . . . Disable Machine 1095 | . . . . 15 15 30 15 . 30 . . . . . . . . . . . . . 15 . . . . 15 45 15 90 525 60 90 135 Anti-Garrison Action 200 | . . . . . . . . . . . . . . . . . . . . . . . . . . . . . . . . 150 . 50 . Destroy Structure 3050 | . 19 . 25 . 5 1 1 . 55 . 7 . . . . 58 . 64 . . . . 30 . . . . 44 22 21 42 294 841 519 1002 Partial Spotted 315 | . . . . . . . . . 60 . . . . . . . . 60 . . . . 45 . . . . 45 45 45 . 15 . . . Lose Combat Pursuer 1920 | . . . 15 . 75 . . . 45 . . . . . 30 15 . 30 . . . 30 15 15 . 150 . 330 90 180 195 345 105 255 . Influence Decreases 24327 | 20 292 184 732 500 865 769 300 . 233 16 19 5 5 . 50 164 39 203 13 . . 90 204 134 30 424 435 99 310 200 412 1179 1723 3558 11120 Entered New Map 17207 | . . . . 148 84 . . . . 16 3 . . . . 34 39 6 5 . . . 54 41 6 . 435 . 170 130 174 159 1293 3330 11080 Time Decay 5618 | 20 282 184 522 342 536 407 300 . 233 . 16 5 5 . 50 120 . 197 8 . . 90 150 93 24 324 . 94 110 70 198 770 270 198 . Lost Part 335 | . 10 . 20 10 30 10 . . . . . . . . . 10 . . . . . . . . . . . 5 30 . 20 110 10 30 40 Lost Ally 502 | . . . 40 . . 202 . . . . . . . . . . . . . . . . . . . 100 . . . . 20 140 . . . Purge Threat 665 | . . . 150 . 215 150 . . . . . . . . . . . . . . . . . . . . . . . . . . 150 . . Squads Dispatched 155 | . 1 . 4 . 4 2 . . 6 . 2 . . . . 3 . 6 . . . . 3 . . . . 4 . 2 5 7 67 39 . Investigation 21 | . . . 1 . 1 . . . 3 . 2 . . . . 1 . 3 . . . . 2 . . . . 2 . 2 2 2 . . . Extermination 10 | . . . . . . . . . 2 . . . . . . . . 2 . . . . . . . . . 1 . . 2 . 2 1 . Reinforcement 21 | . 1 . 3 . . 1 . . 1 . . . . . . 2 . 1 . . . . 1 . . . . 1 . . 1 3 4 2 . Assault 99 | . . . . . . . . . . . . . . . . . . . . . . . . . . . . . . . . 2 61 36 . Garrison 4 | . . . . . 3 1 . . . . . . . . . . . . . . . . . . . . . . . . . . . . . Intercept . | . . . . . . . . . . . . . . . . . . . . . . . . . . . . . . . . . . . . Searches Triggered . | . . . . . . . . . . . . . . . . . . . . . . . . . . . . . . . . . . . . Unchained Authorized 1 | . . . . . . . . . . . . . . . . . . . . . . . . . . . . . . . . . 1 . . Data Miner Redirects 1 | . . . . . . . . . . . . . . . . . . . . . . . 1 . . . . . . . . . . . . Construction Impeded 3 | . . . 1 . . . . . . . . . . . . . . . . . . . . . . . . . . . . . 2 . . Haulers Reinforced . | . . . . . . . . . . . . . . . . . . . . . . . . . . . . . . . . . . . . Active Scanning Responses . | . . . . . . . . . . . . . . . . . . . . . . . . . . . . . . . . . . . . Cargo Convoy Interrupts . | . . . . . . . . . . . . . . . . . . . . . . . . . . . . . . . . . . . . Stealth | -11 -10 -10 -9 -9 -8 -8 -8 -8 -6 -6 -6 -6 -6 -6 -5 -5 -5 -5 -5 -5 -5 -4 -4 -4 -4 -4 -3 -3 -3 -2 -2 -2 -1 -1 -1 --------- Run | Yrd Mat Min Mat Min Mat Sto Rec Scr Fac Was Fac Low Low Dat Pro Fac Was Fac Upp Upp Zhi Pro Fac Upp Upp War Pro Res Qua Res Tes Frg Acc Com Ac0 Distress Signals 43 | . 1 . 1 . 4 3 . . 1 . . . . . 1 . . . . . . 1 . . . . . . 1 . . 11 6 13 . Communications Jammed 71 | . . . . . . . . . . . . . . . . . . . . . . . . . . . . . 1 8 . 62 . . . Distress Signals 29 | . . . . . . . . . . . . . . . . . . . . . . . . . . . . . 1 8 . 20 . . . Times Spotted 1268 | . 13 6 42 15 34 17 3 . 5 4 . . . . 12 3 6 4 . . . 7 4 4 3 74 . 26 12 21 20 189 387 251 106 Peak Tracking Total 20 | . 4 3 5 4 6 4 1 . 4 4 . . . . 9 3 6 3 . . . 5 2 3 3 16 . 12 9 16 8 17 20 14 5 Tactical Retreats 68 | . . . 1 . 4 . . . 2 . . . . . 1 1 . 2 . . . 2 1 1 . 6 . 6 2 2 4 11 10 12 . Traps | -11 -10 -10 -9 -9 -8 -8 -8 -8 -6 -6 -6 -6 -6 -6 -5 -5 -5 -5 -5 -5 -5 -4 -4 -4 -4 -4 -3 -3 -3 -2 -2 -2 -1 -1 -1 ------- Run | Yrd Mat Min Mat Min Mat Sto Rec Scr Fac Was Fac Low Low Dat Pro Fac Was Fac Upp Upp Zhi Pro Fac Upp Upp War Pro Res Qua Res Tes Frg Acc Com Ac0 Traps Triggered 24 | . 2 . 2 . 1 . . . 3 . . . . . . 1 . 4 . . . . . . . . . . . . 1 10 . . . Indirectly . | . . . . . . . . . . . . . . . . . . . . . . . . . . . . . . . . . . . . Trap Hack Attempts . | . . . . . . . . . . . . . . . . . . . . . . . . . . . . . . . . . . . . Triggered . | . . . . . . . . . . . . . . . . . . . . . . . . . . . . . . . . . . . . Disarmed . | . . . . . . . . . . . . . . . . . . . . . . . . . . . . . . . . . . . . Reprogrammed . | . . . . . . . . . . . . . . . . . . . . . . . . . . . . . . . . . . . . Reused . | . . . . . . . . . . . . . . . . . . . . . . . . . . . . . . . . . . . . Traps Extracted . | . . . . . . . . . . . . . . . . . . . . . . . . . . . . . . . . . . . . Installed . | . . . . . . . . . . . . . . . . . . . . . . . . . . . . . . . . . . . . Triggered . | . . . . . . . . . . . . . . . . . . . . . . . . . . . . . . . . . . . . Machines | -11 -10 -10 -9 -9 -8 -8 -8 -8 -6 -6 -6 -6 -6 -6 -5 -5 -5 -5 -5 -5 -5 -4 -4 -4 -4 -4 -3 -3 -3 -2 -2 -2 -1 -1 -1 ---------- Run | Yrd Mat Min Mat Min Mat Sto Rec Scr Fac Was Fac Low Low Dat Pro Fac Was Fac Upp Upp Zhi Pro Fac Upp Upp War Pro Res Qua Res Tes Frg Acc Com Ac0 Machines Disabled 92 | . . . 1 1 1 2 1 . 2 . . . . . . . . . . . . . 1 1 . 2 . 2 3 1 6 41 8 8 11 Max in Single Turn 6 | . . . 1 1 1 1 1 . 1 . . . . . . . . . . . . . 1 1 . 2 . 1 1 1 1 6 1 2 1 Garrison Access 12 | . . . . . . 1 . . 3 . 1 . . . . . . 1 . . . . 2 . . . . . 1 1 . 1 1 . . Phase Generator 1 | . . . . . . . . . . . . . . . . . . . . . . . . . . . . . . . . . . 1 . Machines Repaired . | . . . . . . . . . . . . . . . . . . . . . . . . . . . . . . . . . . . . Machines Dismantled . | . . . . . . . . . . . . . . . . . . . . . . . . . . . . . . . . . . . . Machines Sabotaged . | . . . . . . . . . . . . . . . . . . . . . . . . . . . . . . . . . . . . Overloaded Fab Kills . | . . . . . . . . . . . . . . . . . . . . . . . . . . . . . . . . . . . . Hacking | -11 -10 -10 -9 -9 -8 -8 -8 -8 -6 -6 -6 -6 -6 -6 -5 -5 -5 -5 -5 -5 -5 -4 -4 -4 -4 -4 -3 -3 -3 -2 -2 -2 -1 -1 -1 --------- Run | Yrd Mat Min Mat Min Mat Sto Rec Scr Fac Was Fac Low Low Dat Pro Fac Was Fac Upp Upp Zhi Pro Fac Upp Upp War Pro Res Qua Res Tes Frg Acc Com Ac0 Machines Accessed 159 | . 8 . 13 . 12 14 10 1 17 . 7 . 2 4 1 4 . 11 . 1 4 . 12 . . 1 1 7 9 7 3 5 1 3 1 Terminals 83 | . 6 . 9 . 9 10 5 . 10 . 2 . 1 . 1 . . 3 . 1 . . 4 . . . 1 4 4 4 2 3 1 3 . Fabricators 5 | . . . . . . . . . . . 2 . . . . . . 1 . . . . 2 . . . . . . . . . . . . Repair Stations 7 | . . . 1 . 1 1 . . . . . . . . . 1 . . . . . . 1 . . . . . 2 . . . . . . Recycling Units 26 | . 2 . 1 . . 2 5 . 3 . 2 . . . . 1 . 3 . . . . 2 . . . . 2 . 2 . 1 . . . Scanalyzers 15 | . . . 2 . 2 . . . 1 . . . . . . 2 . 3 . . . . 1 . . . . 1 2 . 1 . . . . Garrison Access 11 | . . . . . . 1 . . 3 . 1 . . . . . . 1 . . . . 2 . . . . . 1 1 . 1 . . . Total Hacks 378 | . 19 . 30 . 37 32 31 5 34 . 12 . 2 32 2 6 . 19 . 1 17 . 23 . . 1 1 20 19 13 5 7 2 5 3 Successful 230 | . 12 . 18 . 19 20 21 5 16 . 5 . 2 32 1 4 . 9 . 1 17 . 11 . . 1 1 8 8 7 4 3 2 . 3 Failed 146 | . 7 . 12 . 18 12 9 . 17 . 7 . . . 1 2 . 10 . . . . 12 . . . . 12 11 6 1 4 . 5 . Catastrophic 14 | . 1 . . . . . 1 . 2 . 1 . . . . . . 2 . . . . 1 . . . . 1 1 1 . 3 . . . Database Lockouts 2 | . . . . . . . 1 . 1 . . . . . . . . . . . . . . . . . . . . . . . . . . Manual 157 | . 13 . 18 . 18 14 22 . 19 . 9 . . . . 1 . 9 . . . . 12 . . 1 . 9 3 4 . 2 . 3 . Terminals 197 | . 16 . 24 . 31 24 19 . 20 . 3 . 1 . 2 . . 3 . 1 . . 7 . . . 1 14 8 10 3 3 2 5 . Fabricators 13 | . . . . . . . . . . . 4 . . . . . . 3 . . . . 6 . . . . . . . . . . . . Repair Stations 14 | . . . 2 . 2 3 . . . . . . . . . 1 . . . . . . 1 . . . . . 5 . . . . . . Recycling Units 48 | . 3 . 1 . . 4 12 . 6 . 3 . . . . 1 . 7 . . . . 3 . . . . 4 . 2 . 2 . . . Scanalyzers 29 | . . . 3 . 4 . . . 2 . . . . . . 4 . 5 . . . . 2 . . . . 2 5 . 2 . . . . Garrison Access 18 | . . . . . . 1 . . 6 . 2 . . . . . . 1 . . . . 4 . . . . . 1 1 . 2 . . . Terminal Hacks 122 | . 3 . 5 . 9 7 3 5 7 . 2 . 2 32 1 . . 1 . 1 17 . 2 . . 1 1 5 5 4 2 2 2 . 3 Record 20 | . . . . . . . . . . . . . 1 11 . . . . . 1 5 . . . . . 1 . . . . 1 . . . Part Schematic 17 | . . . . . . . 1 . . . . . . 12 . . . . . . 4 . . . . . . . . . . . . . . Robot Schematic 6 | . . . . . . . . . . . . . . 6 . . . . . . . . . . . . . . . . . . . . . Robot Analysis 10 | . . . . . . . 1 5 . . . . . . . . . . . . 4 . . . . . . . . . . . . . . Prototype ID Bank 10 | . 1 . . . 1 . 1 . . . . . . 3 . . . . . . 4 . . . . . . . . . . . . . . Open Door 5 | . . . . . . 2 . . . . . . 1 . 1 . . . . . . . . . . 1 . . . . . . . . . Branch Access Points 8 | . 1 . 1 . 1 . . . . . . . . . . . . 1 . . . . 1 . . . . 1 . 1 . . 1 . . Alert Level 1 | . . . . . . . . . . . . . . . . . . . . . . . . . . . . . . . 1 . . . . Unreport Threat 5 | . . . 1 . 2 1 . . . . . . . . . . . . . . . . . . . . . . . . . . 1 . . Locate Traps 17 | . 1 . 1 . 2 2 . . 3 . 1 . . . . . . . . . . . 1 . . . . 2 2 2 . . . . . Recall Reinforcements 2 | . . . . . . . . . . . . . . . . . . . . . . . . . . . . 2 . . . . . . . Hauler Manifests 5 | . . . 1 . 2 1 . . 1 . . . . . . . . . . . . . . . . . . . . . . . . . . Registered Components 1 | . . . . . . 1 . . . . . . . . . . . . . . . . . . . . . . . . . . . . . Zone Layout 11 | . . . 1 . 1 . . . 3 . 1 . . . . . . . . . . . . . . . . . 3 1 1 . . . . Proto ID Catalog 1 | . . . . . . . . . . . . . . . . . . . . . . . . . . . . . . . . 1 . . . Gate Test 138-A 1 | . . . . . . . . . . . . . . . . . . . . . . . . . . . . . . . . . . . 1 Gate Test 138-B 1 | . . . . . . . . . . . . . . . . . . . . . . . . . . . . . . . . . . . 1 Gate Test 138-C 1 | . . . . . . . . . . . . . . . . . . . . . . . . . . . . . . . . . . . 1 Fabricator Hacks 1 | . . . . . . . . . . . . . . . . . . . . . . . 1 . . . . . . . . . . . . Network Status 1 | . . . . . . . . . . . . . . . . . . . . . . . 1 . . . . . . . . . . . . Repair Station Hacks 7 | . . . 2 . 1 2 . . . . . . . . . . . . . . . . 1 . . . . . 1 . . . . . . Scan Component 3 | . . . 1 . 1 1 . . . . . . . . . . . . . . . . . . . . . . . . . . . . . Repair 2 | . . . 1 . . 1 . . . . . . . . . . . . . . . . . . . . . . . . . . . . . Refit 2 | . . . . . . . . . . . . . . . . . . . . . . . 1 . . . . . 1 . . . . . . Recycling Unit Hacks 10 | . 2 . . . . 2 5 . . . . . . . . . . 1 . . . . . . . . . . . . . . . . . Retrieve Components 10 | . 2 . . . . 2 5 . . . . . . . . . . 1 . . . . . . . . . . . . . . . . . Scanalyzer 15 | . . . 3 . 1 . . . 1 . . . . . . 3 . 2 . . . . 1 . . . . 1 1 . 2 . . . . Insert Component 5 | . . . . . . . . . . . . . . . . 2 . . . . . . 1 . . . . 1 . . 1 . . . . Analyze 1 | . . . . . . . . . . . . . . . . 1 . . . . . . . . . . . . . . . . . . . Retrieve Study 9 | . . . 3 . 1 . . . 1 . . . . . . . . 2 . . . . . . . . . . 1 . 1 . . . . Garrison Access Hacks 10 | . . . . . . 1 . . 3 . 1 . . . . . . 1 . . . . 2 . . . . . 1 1 . . . . . Seal Access 10 | . . . . . . 1 . . 3 . 1 . . . . . . 1 . . . . 2 . . . . . 1 1 . . . . . Unauthorized Hacks 65 | . 7 . 8 . 8 8 13 . 5 . 2 . . . . 1 . 4 . . . . 4 . . . . 2 . 2 . 1 . . . Terminals 40 | . 7 . 8 . 8 6 8 . 2 . . . . . . . . . . . . . 1 . . . . . . . . . . . . Assimilate 2 | . . . . . 1 . . . 1 . . . . . . . . . . . . . . . . . . . . . . . . . . Botnet 11 | . 2 . 2 . 2 1 3 . . . . . . . . . . . . . . . 1 . . . . . . . . . . . . Skim 27 | . 5 . 6 . 5 5 5 . 1 . . . . . . . . . . . . . . . . . . . . . . . . . . Fabricators 2 | . . . . . . . . . . . . . . . . . . 1 . . . . 1 . . . . . . . . . . . . Fabnet 2 | . . . . . . . . . . . . . . . . . . 1 . . . . 1 . . . . . . . . . . . . Repair Stations . | . . . . . . . . . . . . . . . . . . . . . . . . . . . . . . . . . . . . Recycling Units 23 | . . . . . . 2 5 . 3 . 2 . . . . 1 . 3 . . . . 2 . . . . 2 . 2 . 1 . . . Mask 2 | . . . . . . 2 . . . . . . . . . . . . . . . . . . . . . . . . . . . . . Tunnel 5 | . . . . . . . 5 . . . . . . . . . . . . . . . . . . . . . . . . . . . . Fedlink 16 | . . . . . . . . . 3 . 2 . . . . 1 . 3 . . . . 2 . . . . 2 . 2 . 1 . . . Scanalyzers . | . . . . . . . . . . . . . . . . . . . . . . . . . . . . . . . . . . . . Garrison Access . | . . . . . . . . . . . . . . . . . . . . . . . . . . . . . . . . . . . . Data Cores Recovered 3 | . . . 1 . . . . . . . . . . . . . . . . . . . . . . . . . . . . . . 2 . Used 1 | . . . . . . . . . . . . . . . . . . . . . . . . . . . . . . . . . . 1 . Hacking Detections 101 | . 7 . 13 . 12 9 5 . 12 . 4 . . . . 3 . 7 . . . . 7 . . . . 6 4 4 2 2 1 3 . Full Trace Events 1 | . . . 1 . . . . . . . . . . . . . . . . . . . . . . . . . . . . . . . . Feedback Events . | . . . . . . . . . . . . . . . . . . . . . . . . . . . . . . . . . . . . Feedback Blocked . | . . . . . . . . . . . . . . . . . . . . . . . . . . . . . . . . . . . . Robot Schematics Acquired 12 | . . . . . . . . . . . . . . 6 . . . . . . . . . . . . . . . . . 6 . . . Robots Built . | . . . . . . . . . . . . . . . . . . . . . . . . . . . . . . . . . . . . Authchips . | . . . . . . . . . . . . . . . . . . . . . . . . . . . . . . . . . . . . Time . | . . . . . . . . . . . . . . . . . . . . . . . . . . . . . . . . . . . . Total Robot Build Rating . | . . . . . . . . . . . . . . . . . . . . . . . . . . . . . . . . . . . . Part Schematics Acquired 30 | . . . . . . . 1 . . . . . . 12 . 1 . . . . 4 . . . . . . . . . 2 10 . . . Parts Built . | . . . . . . . . . . . . . . . . . . . . . . . . . . . . . . . . . . . . Authchips . | . . . . . . . . . . . . . . . . . . . . . . . . . . . . . . . . . . . . Time . | . . . . . . . . . . . . . . . . . . . . . . . . . . . . . . . . . . . . Total Part Build Rating . | . . . . . . . . . . . . . . . . . . . . . . . . . . . . . . . . . . . . Part Studies Acquired 9 | . . . 3 . 1 . . . 1 . . . . . . . . 2 . . . . . . . . . . 1 . 1 . . . . Parts Repaired 2 | . . . 1 . . 1 . . . . . . . . . . . . . . . . . . . . . . . . . . . . . Time 64 | . . . 26 . . 38 . . . . . . . . . . . . . . . . . . . . . . . . . . . . . Parts Recycled . | . . . . . . . . . . . . . . . . . . . . . . . . . . . . . . . . . . . . Recycled Matter . | . . . . . . . . . . . . . . . . . . . . . . . . . . . . . . . . . . . . Retrieved Matter . | . . . . . . . . . . . . . . . . . . . . . . . . . . . . . . . . . . . . Retrieved Components 44 | . 4 . . . . 11 27 . . . . . . . . . . 2 . . . . . . . . . . . . . . . . . Parts Scanalyzed 1 | . . . . . . . . . . . . . . . . 1 . . . . . . . . . . . . . . . . . . . Part Schematics Acquired 1 | . . . . . . . . . . . . . . . . 1 . . . . . . . . . . . . . . . . . . . Parts Damaged . | . . . . . . . . . . . . . . . . . . . . . . . . . . . . . . . . . . . . Bothacking | -11 -10 -10 -9 -9 -8 -8 -8 -8 -6 -6 -6 -6 -6 -6 -5 -5 -5 -5 -5 -5 -5 -4 -4 -4 -4 -4 -3 -3 -3 -2 -2 -2 -1 -1 -1 ------------ Run | Yrd Mat Min Mat Min Mat Sto Rec Scr Fac Was Fac Low Low Dat Pro Fac Was Fac Upp Upp Zhi Pro Fac Upp Upp War Pro Res Qua Res Tes Frg Acc Com Ac0 Used RIF Installer . | . . . . . . . . . . . . . . . . . . . . . . . . . . . . . . . . . . . . Robots Hacked 16 | . . . . . . . . . . . . . . . . . . . . . . . . 1 . 5 . . . . 1 9 . . . Non-combat . | . . . . . . . . . . . . . . . . . . . . . . . . . . . . . . . . . . . . Combat 16 | . . . . . . . . . . . . . . . . . . . . . . . . 1 . 5 . . . . 1 9 . . . Robot Hacks Applied . | . . . . . . . . . . . . . . . . . . . . . . . . . . . . . . . . . . . . Relay Couplers Released 5 | . . . . . . . . . . . . . . . . . . . . . . . . . . . . . . . . 2 3 . . Machine Destruction 5 | . . . . . . . . . . . . . . . . . . . . . . . . . . . . . . . . 2 3 . . Fabnet Peak Effective % 4 | . . . . . . . . . . . . . . . . . . . . . . 3 3 3 3 3 4 4 4 1 1 1 . . . Autooverrided 16 | . . . . . . . . . . . . . . . . . . . . . . . . 1 . 5 . . . . 1 9 . . . Robots Rewired . | . . . . . . . . . . . . . . . . . . . . . . . . . . . . . . . . . . . . Allies Hacked . | . . . . . . . . . . . . . . . . . . . . . . . . . . . . . . . . . . . . Hacks Repelled . | . . . . . . . . . . . . . . . . . . . . . . . . . . . . . . . . . . . . Allies | -11 -10 -10 -9 -9 -8 -8 -8 -8 -6 -6 -6 -6 -6 -6 -5 -5 -5 -5 -5 -5 -5 -4 -4 -4 -4 -4 -3 -3 -3 -2 -2 -2 -1 -1 -1 -------- Run | Yrd Mat Min Mat Min Mat Sto Rec Scr Fac Was Fac Low Low Dat Pro Fac Was Fac Upp Upp Zhi Pro Fac Upp Upp War Pro Res Qua Res Tes Frg Acc Com Ac0 Total Allies 31 | . . 3 . . 1 10 . . . . . . . . . . 1 . . . . . . 1 . 5 . . . . 1 9 . . . Largest Group 11 | . . 3 2 . 1 11 . . . . . . . . . . 1 . . . . . . 1 . 2 . . . . 1 1 . . . Highest-Rated Group 183 | . . 40 24 . 10 183 . . . . . . . . . . 31 . . . . . . 56 . 59 . . . . 58 82 . . . Highest-Rated Ally 82 | . . 16 16 . 10 29 . . . . . . . . . . 31 . . . . . . 56 . 47 . . . . 58 82 . . . Initial UFD Resources 113 | . . . . . . . . . 22 38 38 42 42 42 44 44 54 54 62 62 62 66 66 80 80 80 83 83 97 99 113 113 . . . Total Orders . | . . . . . . . . . . . . . . . . . . . . . . . . . . . . . . . . . . . . Ally Attacks 147 | . . 5 27 . . 79 . . . . . . . . . . . . . . . . . 7 . 8 . . . . 1 20 . . . Total Damage 3088 | . . 72 270 . . 1087 . . . . . . . . . . . . . . . . . 199 . 674 . . . . 45 741 . . . Kills 19 | . . 1 5 . . 10 . . . . . . . . . . . . . . . . . . . 2 . . . . . 1 . . . Allies Corrupted . | . . . . . . . . . . . . . . . . . . . . . . . . . . . . . . . . . . . . Allies Melted 4 | . . . . . . 1 . . . . . . . . . . . . . . . . . . . . . . . . . 3 . . . Intel | -11 -10 -10 -9 -9 -8 -8 -8 -8 -6 -6 -6 -6 -6 -6 -5 -5 -5 -5 -5 -5 -5 -4 -4 -4 -4 -4 -3 -3 -3 -2 -2 -2 -1 -1 -1 ------- Run | Yrd Mat Min Mat Min Mat Sto Rec Scr Fac Was Fac Low Low Dat Pro Fac Was Fac Upp Upp Zhi Pro Fac Upp Upp War Pro Res Qua Res Tes Frg Acc Com Ac0 Active Infowar (turns) 24064 | 65 836 745 2 . . . . . 766 17 144 160 100 38 205 249 19 597 113 142 81 182 318 268 230 1062 165 229 236 153 405 5001 2826 5376 3334 Optics 20934 | . . . . . . . . . . . . . . . . 249 19 597 113 142 81 182 318 268 230 1062 165 229 236 153 405 5001 2826 5376 3282 Sensors 4524 | . . . 2 . . . . . 750 17 142 159 100 38 178 225 19 597 113 142 81 182 318 268 230 198 165 27 . . 311 262 . . . Structural 5961 | . . . . . . . . . 763 17 144 160 98 38 205 249 19 597 113 142 81 182 318 268 230 1062 165 229 236 153 405 87 . . . Seismic 1646 | 65 836 745 . . . . . . . . . . . . . . . . . . . . . . . . . . . . . . . . . Triangulation 1228 | . . . . . . . . . . . . . . . . . . . . . . . . . . . . . . . . . . . 1228 Cloaking 2068 | . . . . . . . . . . . . . . . . . . . . . . . . . . . . . . . . 2068 . . . Jamming 1491 | . . . . . . . . . . . . . . . . . . . . . . . . . . . . . 23 153 401 914 . . . ECM 2 | . . . . . . . . . . . . . . . . . . . . . . . . . . . . . . . . 2 . . . Robot Analysis Total 10 | . . . . . . . 1 5 . . . . . . . . . . . . 4 . . . . . . . . . . . . . . Derelict Logs Recovered 17 | . . 2 . 2 . . . . . . . 2 . . 2 . . . 2 1 . 3 . 1 2 . . . . . . . . . . Drone Launches . | . . . . . . . . . . . . . . . . . . . . . . . . . . . . . . . . . . . . Drone Recoveries . | . . . . . . . . . . . . . . . . . . . . . . . . . . . . . . . . . . . . Exploration | -11 -10 -10 -9 -9 -8 -8 -8 -8 -6 -6 -6 -6 -6 -6 -5 -5 -5 -5 -5 -5 -5 -4 -4 -4 -4 -4 -3 -3 -3 -2 -2 -2 -1 -1 -1 ------------- Run | Yrd Mat Min Mat Min Mat Sto Rec Scr Fac Was Fac Low Low Dat Pro Fac Was Fac Upp Upp Zhi Pro Fac Upp Upp War Pro Res Qua Res Tes Frg Acc Com Ac0 Turns Passed 34248 | 163 836 1274 1912 771 1804 1562 1319 2163 784 17 144 160 100 38 205 249 19 597 113 142 81 182 318 268 230 1062 165 229 236 153 405 5001 2826 5386 3334 Spaces Moved 34919 | 109 463 737 850 350 731 689 706 1648 2402 68 433 380 334 102 480 612 68 1468 403 440 211 374 938 549 493 2120 430 528 603 379 885 7426 1072 2732 2706 Core 13 | 13 . . . . . . . . . . . . . . . . . . . . . . . . . . . . . . . . . . . Treads 4260 | . 407 737 850 350 731 689 496 . . . . . . . . . . . . . . . . . . . . . . . . . . . . Legs 7244 | 96 56 . . . . . . . . . . . . . . . . . . . . . . . . . . . . . . 582 1072 2732 2706 Wheels 1858 | . . . . . . . 210 1648 . . . . . . . . . . . . . . . . . . . . . . . . . . . Hover . | . . . . . . . . . . . . . . . . . . . . . . . . . . . . . . . . . . . . Flight 21544 | . . . . . . . . . 2402 68 433 380 334 102 480 612 68 1468 403 440 211 374 938 549 493 2120 430 528 603 379 885 6844 . . . Fastest Speed 25 | 50 120 160 160 200 200 200 130 130 25 25 25 26 26 26 26 26 28 28 28 28 28 28 26 26 26 26 27 27 27 31 31 31 110 106 106 Average Speed 69 | 111 155 160 171 200 200 200 179 130 25 25 25 26 26 26 26 26 28 28 28 28 28 28 26 26 26 26 27 27 27 31 31 37 110 108 106 Slowest Speed 240 | 120 160 160 200 200 240 200 200 130 25 25 26 26 26 26 26 28 28 28 28 28 28 28 26 26 26 106 27 27 31 31 31 110 110 190 106 Overloaded Moves . | . . . . . . . . . . . . . . . . . . . . . . . . . . . . . . . . . . . . Propulsion Burnouts . | . . . . . . . . . . . . . . . . . . . . . . . . . . . . . . . . . . . . Robots Hopped 28 | . . . . . . . . . 1 . . . . . . . . . . . . . 1 . . . . 8 3 5 4 6 . . . Potential Cave-ins . | . . . . . . . . . . . . . . . . . . . . . . . . . . . . . . . . . . . . Cave-ins Triggered . | . . . . . . . . . . . . . . . . . . . . . . . . . . . . . . . . . . . . Teleports 5 | . . . . . . . . . . . . . . . . . . . . . 1 . . . . . . . . . . 2 . 1 1 Exploration Rate (%) 62 | 4 75 98 88 85 60 94 92 92 50 59 12 66 51 71 47 16 95 46 61 58 64 68 29 52 64 92 77 26 86 22 81 81 24 59 95 Regions Visited 35 Branch Regions 22 Pre-discovered Areas 21 | . . . 4 . 3 2 6 . 1 . . . . 1 . . . . . . 3 . . 1 . . . . . . . . . . . Known Exits Taken 26 | . 1 . 1 . 1 1 1 1 . . 1 1 1 1 1 . . 1 1 1 1 1 1 1 1 1 1 1 1 1 1 . 1 . . Unknown Exits Taken 5 | 1 . 1 . 1 . . . . . . . . . . . . . . . . . . . . . . . . . . . 1 . 1 . Scrap Searched 23 | . . 2 . . . . . 3 . . . 1 3 . 2 . . . 2 1 . 3 . 2 1 . 3 . . . . . . . . Spaces Dug 390 | . . . 23 . 1 . . . 61 . 7 10 2 . 13 23 . 32 . . . 10 15 61 18 16 14 18 11 7 14 3 4 3 24 Terrain Destroyed 1694 | . 33 . 23 . 1 . . . 71 . 7 10 2 . 25 28 . 32 . . . 119 15 62 18 202 14 18 12 7 15 184 323 233 240 Melee 209 | . . . . . 1 . . . 36 . 6 7 2 . 6 9 . 29 . . . 2 13 17 14 16 10 10 8 7 10 2 4 . . Projectile 336 | . . . . . . . . . 7 . 1 3 . . 7 5 . 3 . . . 1 2 3 4 2 4 8 4 . 5 7 2 28 240 AOE 717 | . 33 . 23 . . . . . 28 . . . . . 12 14 . . . . . 116 . 42 . 184 . . . . . 151 53 61 . Terrain Rammed . | . . . . . . . . . . . . . . . . . . . . . . . . . . . . . . . . . . . . Walls Destroyed . | . . . . . . . . . . . . . . . . . . . . . . . . . . . . . . . . . . . . Machines Disabled . | . . . . . . . . . . . . . . . . . . . . . . . . . . . . . . . . . . . . Actions | -11 -10 -10 -9 -9 -8 -8 -8 -8 -6 -6 -6 -6 -6 -6 -5 -5 -5 -5 -5 -5 -5 -4 -4 -4 -4 -4 -3 -3 -3 -2 -2 -2 -1 -1 -1 --------- Run | Yrd Mat Min Mat Min Mat Sto Rec Scr Fac Was Fac Low Low Dat Pro Fac Was Fac Upp Upp Zhi Pro Fac Upp Upp War Pro Res Qua Res Tes Frg Acc Com Ac0 Total 42239 | 132 538 798 1115 378 917 831 749 1671 2518 67 453 422 340 112 532 675 67 1586 402 458 229 426 986 635 571 2574 459 573 641 389 966 9237 1952 4681 3159 Wait 3653 | 4 16 29 112 1 51 59 6 12 21 . 7 22 . 9 23 27 . 20 . 17 . 25 16 51 53 329 8 3 . 2 30 938 345 1414 3 Move 34833 | 108 462 736 849 349 730 688 705 1647 2400 67 432 379 333 101 479 612 67 1467 402 439 210 373 935 548 492 2119 429 512 596 370 877 7414 1070 2731 2705 Hop 22 | . . . . . . . . . 1 . . . . . . . . . . . . . 1 . . . . 7 3 3 3 4 . . . Pick Up 244 | 5 9 2 14 5 9 6 4 6 4 . 1 1 . . . 2 . 2 . 1 2 1 3 1 . 9 1 5 2 2 3 100 6 24 14 Fast Attach 149 | 7 9 3 8 . 6 7 . . 6 . 1 . 2 1 . 3 . . . . 7 . . . . 11 . 4 4 . 4 45 2 17 2 Attach 156 | . . . 3 1 6 1 4 1 14 . . 1 . . . 3 . 1 . . . 3 5 3 4 19 3 10 6 1 7 31 10 13 6 Detach 76 | . . . 1 . . . . . 3 . . . . . . 2 . . . . . 3 3 3 4 18 3 6 4 . 7 13 3 3 . Swap 491 | 1 7 1 19 . 11 5 . . 6 . 3 7 1 . 13 7 . 6 . . . . 2 1 . 5 1 . 3 . 1 88 147 132 24 Drop 316 | . 12 5 19 1 14 13 9 5 14 . 2 1 1 1 . 2 . 1 . 1 8 1 3 . . 14 . 4 7 1 7 120 6 31 13 Fire 1675 | 7 23 15 83 19 87 43 21 . 10 . 1 3 . . 11 8 . 3 . . . 11 2 7 4 33 4 9 4 . 5 268 347 256 391 Melee 434 | . . . . . 2 2 . . 39 . 6 8 3 . 6 9 . 41 . . 2 9 16 21 14 17 10 13 12 10 22 126 5 40 1 Ram . | . . . . . . . . . . . . . . . . . . . . . . . . . . . . . . . . . . . . Kick . | . . . . . . . . . . . . . . . . . . . . . . . . . . . . . . . . . . . . Crush 23 | . . 7 7 2 1 6 . . . . . . . . . . . . . . . . . . . . . . . . . . . . . Escape Stasis 166 | . . . . . . . . . . . . . . . . . . 45 . . . . . . . . . . . . . 90 11 20 . Rewire 1 | . . . . . . 1 . . . . . . . . . . . . . . . . . . . . . . . . . . . . . Trap . | . . . . . . . . . . . . . . . . . . . . . . . . . . . . . . . . . . . . Miscellaneous . | . . . . . . . . . . . . . . . . . . . . . . . . . . . . . . . . . . . . Route ------- -11/Scrapyard -10/Materials (discovered 4 exits: *Mat x2 / *Min / [*Sub]) -10/Mines (discovered 2 exits: *Mat x2) -9/Materials (discovered 4 exits: *Mat x3 / *Min) -9/Mines (discovered 4 exits: *Mat x2 / Exi / [*Zio]) -8/Materials (discovered 4 exits: *Fac x3 / *Sto) -8/Storage (discovered 2 exits: *Fac / *Rec) -8/Recycling (discovered 2 exits: *Fac / *Scr) -8/Scraptown (discovered 2 exits: *Fac x2) -6/Factory (discovered 6 exits: Fac x4 / Low x2) -6/Waste -6/Factory -6/Lower Caves -6/Lower Caves -6/Data Miner -5/Proximity Caves -5/Factory (discovered 4 exits: *Fac x3 / Upp) -5/Waste -5/Factory (discovered 4 exits: *Fac x2 / *Upp x2) -5/Upper Caves -5/Upper Caves -5/Zhirov -4/Proximity Caves -4/Factory (discovered 5 exits: *Upp x2 / Ext x2 / Arm) -4/Upper Caves -4/Upper Caves (discovered 2 exits: *Res / *War) -4/Warlord -3/Proximity Caves -3/Research (discovered 3 exits: *Res / *Qua x2) -3/Quarantine -2/Research -2/Testing (discovered 2 exits: [*Sec] / *Frg) -2/Protoforge -1/Access -1/Command (discovered 3 exits: [*Sur x2] / *Ac0) -1/Access_0 0b11 Command History --------- Turn | Location | Event 11 | -11/Scrapyard | Discovered new exit (range 14) 164 | -11/Scrapyard | Entered Materials 278 | -10/Materials | Discovered new exit (range 16) 294 | -10/Materials | Discovered new exit (range 9) 316 | -10/Materials | Build established: Mutant 545 | -10/Materials | Discovered new exit (range 14) 706 | -10/Materials | Identified exit to Mines 741 | -10/Materials | Discovered new exit (range 7) 828 | -10/Materials | Learned Storage emergency access door positions 970 | -10/Materials | Learned 4 Recycling zone layouts 1000 | -10/Materials | Entered Mines 1152 | -10/Mines | Met a Derelict bent on vengeance 1170 | -10/Mines | Learned Materials garrison access intel 1187 | -10/Mines | Found a damaged Exp. Sensor Array with a note attached 1193 | -10/Mines | Found Prototype Device 1218 | -10/Mines | Discovered new exit (range 14) 1312 | -10/Mines | Discovered new exit (range 3) 1331 | -10/Mines | Assisted by bots powering up and referring to "LRC-V3" 1715 | -10/Mines | Joined a pair of Derelicts in attacking an 0b10 outpost 1792 | -10/Mines | Found DCF Scrap (13 items) 1876 | -10/Mines | Learned Materials emergency access door positions 2274 | -10/Mines | Entered Materials 2274 | -9/Materials | Accompanied by 2 allies 2274 | -9/Materials | Evolved 2 slots: Propulsion x1, Weapon x1 2581 | -9/Materials | Build established: Tank 2662 | -9/Materials | Identified Exp. Sensor Array 2708 | -9/Materials | Discovered new exit (range 5) 2901 | -9/Materials | Identified exit to Mines 2912 | -9/Materials | Build established: Scavenger-Tank 3000 | -9/Materials | Learned location of Zion (-7) 3043 | -9/Materials | Learned 2 Storage zone layouts 3075 | -9/Materials | Learned Storage security intel 3106 | -9/Materials | Learned Storage emergency access door positions 3123 | -9/Materials | Learned Recycling recycling unit intel 3134 | -9/Materials | Discovered new exit (range 5) 3145 | -9/Materials | Learned location of Mines (-9) 3258 | -9/Materials | Repaired Lgt. Armor Plating 3942 | -9/Materials | Discovered new exit (range 16) 4186 | -9/Materials | Entered Mines 4321 | -9/Mines | YI-UF0 nonchalantly dropped a Grenade Launcher on the ground 4394 | -9/Mines | Discovered new exit (range 9) 4637 | -9/Mines | Learned Materials stockpile data 4867 | -9/Mines | Identified exit to Exiles 4931 | -9/Mines | Discovered new exit (range 13) 4932 | -9/Mines | A Derelict revealed a hidden shortcut to a safe place 4957 | -9/Mines | Entered Materials 4957 | -8/Materials | Evolved 2 slots: Utility x2 4959 | -8/Materials | Loaded intel: 1 garrison access location 5261 | -8/Materials | Garrison activated, responded to threat 5710 | -8/Materials | Identified exit to Storage 6010 | -8/Materials | Identified exit to Factory 6117 | -8/Materials | Learned location of Extension (-4) 6133 | -8/Materials | Learned location of Lower Caves (-7) 6140 | -8/Materials | Learned location of 2 exits from Factory 6156 | -8/Materials | Learned location of 2 exits from Factory 6377 | -8/Materials | Core integrity fell below 50% 6653 | -8/Materials | Discovered exit to Factory (range 4) 6761 | -8/Materials | Entered Storage 6761 | -8/Storage | Accompanied by 1 ally 6762 | -8/Storage | Identified exit to Recycling 6965 | -8/Storage | Assisted by bots powering up and referring to "LRC-V3" 7238 | -8/Storage | Build established: Commander-Tank 7271 | -8/Storage | Repaired Hrd. Medium Armor Plating 7587 | -8/Storage | Garrison activated, responded to threat 7736 | -8/Storage | Lost 3 allies 7932 | -8/Storage | Discovered exit to Factory (range 6) 7979 | -8/Storage | Build established: Tank 8073 | -8/Storage | Learned location of 1 exit from Recycling 8140 | -8/Storage | Learned Recycling recycling unit intel 8161 | -8/Storage | Learned location of 1 exit from Lower Caves 8188 | -8/Storage | Learned Factory recycling unit intel 8260 | -8/Storage | Learned location of 1 exit from Extension 8317 | -8/Storage | Used back door to open Recycling access 8323 | -8/Storage | Entered Recycling 8324 | -8/Recycling | Identified exit to Factory 8325 | -8/Recycling | Identified exit to Scraptown 8327 | -8/Recycling | Loaded intel: 5 recycling unit locations 8941 | -8/Recycling | Learned Storage emergency access door positions 8990 | -8/Recycling | Learned 4 Recycling zone layouts 9030 | -8/Recycling | Learned 2 Lower Caves zone layouts 9084 | -8/Recycling | Learned Storage stockpile data 9159 | -8/Recycling | Learned location of 1 exit from Extension 9607 | -8/Recycling | Scanned before Scraplab entrance 9628 | -8/Recycling | Entered Scraplab 9642 | -8/Recycling | Entered Scraptown 9856 | -8/Scraptown | Visited Comm Corps 9912 | -8/Scraptown | Build established: Mutant 9933 | -8/Scraptown | Visited Spacefarers 10369 | -8/Scraptown | Heard Great Nut preacher, LISTEN AND RECITE! 10508 | -8/Scraptown | Visited Awakened 10554 | -8/Scraptown | Visited SPCMW 10611 | -8/Scraptown | Visited Shadow of the Wyrm 10630 | -8/Scraptown | Visited The Evicted 10739 | -8/Scraptown | Visited Fellowship of the Rings 10884 | -8/Scraptown | Visited UFD Registry 10884 | -8/Scraptown | Registered with UFD as "Autosourcer" 10932 | -8/Scraptown | Visited Modified Component R&D 10988 | -8/Scraptown | Visited Scrap Suit Storage 11011 | -8/Scraptown | Visited Junk Repository 11198 | -8/Scraptown | Visited Infowarlord's Domain 11210 | -8/Scraptown | Found Spectral Analyzer 11241 | -8/Scraptown | Visited Research Penetration Think Tank 11298 | -8/Scraptown | Visited Junk Cannon Lab 11329 | -8/Scraptown | Visited Analyses Database 11360 | -8/Scraptown | Visited Scrapoid Pod Storage 11381 | -8/Scraptown | Visited Botcube Research 11723 | -8/Scraptown | Met Optimus 11723 | -8/Scraptown | Accepted into 0bPrime 11805 | -8/Scraptown | Entered Factory 11805 | -6/Factory | Evolved 4 slots: Propulsion x2, Utility x2 11806 | -6/Factory | Identified exit to Factory 11807 | -6/Factory | Identified exit to Lower Caves 11808 | -6/Factory | Loaded intel: 8 recycling unit locations 11854 | -6/Factory | Watched by a mysterious "MATRIX" hacker. 11967 | -6/Factory | Central database locked down 12108 | -6/Factory | Build established: Scout 12109 | -6/Factory | Loaded intel: 8 recycling unit locations 12249 | -6/Factory | Learned location of Protoforge (-2) 12361 | -6/Factory | Spotted B-75 Beast 12589 | -6/Factory | Manually triggered Chute Trap 12589 | -6/Factory | Sucked down chute 12589 | -6/Factory | Entered Waste 12592 | -6/Waste | Spotted C-40 Crusher 12596 | -6/Waste | Spotted C-40 Crusher 12599 | -6/Waste | Spotted C-40 Crusher 12601 | -6/Waste | Spotted C-40 Crusher 12602 | -6/Waste | Spotted C-40 Crusher 12602 | -6/Waste | Discovered new exit (range 16) 12604 | -6/Waste | EMP discharged 12606 | -6/Waste | Identified exit to Factory 12606 | -6/Waste | Entered Factory 12681 | -6/Factory | Discovered exit to Lower Caves (range 6) 12733 | -6/Factory | Loaded intel: 8 recycling unit locations 12750 | -6/Factory | Entered Lower Caves 12751 | -6/Lower Caves | Identified exit to Lower Caves 12806 | -6/Lower Caves | Learned 8 Factory zone layouts 12810 | -6/Lower Caves | Learned Factory stockpile data 12835 | -6/Lower Caves | Encountered a Warlord checkpoint 12910 | -6/Lower Caves | Entered another Lower Caves area 12935 | -6/Lower Caves | Encountered a Warlord checkpoint 12948 | -6/Lower Caves | Found Alien Artifact 12948 | -6/Lower Caves | Identified Core Expander 12948 | -6/Lower Caves | Installed Core Expander, added new Power slot 12975 | -6/Lower Caves | Discovered new exit (range 7) 13009 | -6/Lower Caves | Identified exit to Data Miner 13010 | -6/Lower Caves | Entered Data Miner 13011 | -6/Data Miner | Discovered new exit (range 8) 13016 | -6/Data Miner | Met Data Miner 13022 | -6/Data Miner | Learned location of Section 7 (-2) 13022 | -6/Data Miner | Acquired the access code to Warlord's prototype stash 13028 | -6/Data Miner | Received God Mode back door access code from Data Miner 13048 | -6/Data Miner | Identified exit to Proximity Caves 13048 | -6/Data Miner | Entered Proximity Caves 13129 | -5/Proximity Caves | Learned 8 Factory zone layouts 13171 | -5/Proximity Caves | Learned location of 1 exit from Factory 13242 | -5/Proximity Caves | Snuck into a huge 0b10 base via the rear entrance 13252 | -5/Proximity Caves | Discovered exit to Factory (range 3) 13253 | -5/Proximity Caves | Entered Factory 13253 | -5/Factory | Evolved 2 slots: Utility x2 13254 | -5/Factory | Identified exit to Factory 13255 | -5/Factory | Identified exit to Upper Caves 13294 | -5/Factory | Loaded intel: 8 recycling unit locations 13502 | -5/Factory | Manually triggered Chute Trap 13502 | -5/Factory | Sucked down chute 13502 | -5/Factory | Entered Waste 13503 | -5/Waste | Met a frightened Derelict 13506 | -5/Waste | Spotted C-40 Crusher 13506 | -5/Waste | Spotted C-40 Crusher 13509 | -5/Waste | Spotted C-40 Crusher 13512 | -5/Waste | Spotted C-40 Crusher 13515 | -5/Waste | Discovered new exit (range 23) 13515 | -5/Waste | Spotted C-40 Crusher 13515 | -5/Waste | Spotted C-40 Crusher 13517 | -5/Waste | EMP discharged 13521 | -5/Waste | Identified exit to Factory 13521 | -5/Waste | Entered Factory 13825 | -5/Factory | Loaded intel: 8 recycling unit locations 13880 | -5/Factory | Discovered exit to Factory (range 19) 14036 | -5/Factory | Build established: Hacker-Scout 14076 | -5/Factory | Discovered exit to Factory (range 21) 14118 | -5/Factory | Entered Upper Caves 14132 | -5/Upper Caves | Encountered a Warlord checkpoint 14179 | -5/Upper Caves | Learned Factory trap positions 14183 | -5/Upper Caves | Learned Factory stockpile data 14208 | -5/Upper Caves | Discovered new exit (range 11) 14211 | -5/Upper Caves | Identified exit to Upper Caves 14231 | -5/Upper Caves | Entered another Upper Caves area 14338 | -5/Upper Caves | Discovered new exit (range 5) 14339 | -5/Upper Caves | Identified exit to Zhirov 14354 | -5/Upper Caves | Encountered a Warlord checkpoint 14356 | -5/Upper Caves | Learned Factory security intel 14373 | -5/Upper Caves | Entered Zhirov 14374 | -5/Zhirov | Discovered new exit (range 3) 14379 | -5/Zhirov | Met Zhirov 14384 | -5/Zhirov | Learned location of Command (-1) 14389 | -5/Zhirov | Zhirov requested help retrieving the SGEMP Prototype 14394 | -5/Zhirov | Found Alien Artifact 14394 | -5/Zhirov | Identified Transdimensional Reconstructor 14394 | -5/Zhirov | Warped through subspace 14408 | -5/Zhirov | Found Alien Artifact 14408 | -5/Zhirov | Identified Integrated Reactor 14408 | -5/Zhirov | Installed Integrated Reactor, increased core energy generation (+10) 14454 | -5/Zhirov | Identified exit to Proximity Caves 14454 | -5/Zhirov | Entered Proximity Caves 14511 | -4/Proximity Caves | Destroyed 9 combat bots 14525 | -4/Proximity Caves | Learned Research security intel 14636 | -4/Proximity Caves | Entered Factory 14636 | -4/Factory | Evolved 2 slots: Propulsion x1, Utility x1 14637 | -4/Factory | Loaded intel: 73 trap records 14729 | -4/Factory | Loaded intel: 8 recycling unit locations 14760 | -4/Factory | Discovered new exit (range 20) 14770 | -4/Factory | Identified exit to Upper Caves 14770 | -4/Factory | Identified exit to Extension 14770 | -4/Factory | Identified exit to Armory 14918 | -4/Factory | Spotted B-86 Titan 14933 | -4/Factory | Incoming investigation squad redirected 14954 | -4/Factory | Entered Upper Caves 14967 | -4/Upper Caves | Spotted B-86 Titan 14981 | -4/Upper Caves | Learned location of Armory (-4) 15187 | -4/Upper Caves | Attracted the attention of an 0b10 checkpoint 15204 | -4/Upper Caves | Found Alien Artifact 15216 | -4/Upper Caves | Discovered new exit (range 22) 15222 | -4/Upper Caves | Identified exit to Upper Caves 15222 | -4/Upper Caves | Entered another Upper Caves area 15222 | -4/Upper Caves | Discovered new exit (range 8) 15228 | -4/Upper Caves | Spotted B-86 Titan 15314 | -4/Upper Caves | Learned Research terminal intel 15420 | -4/Upper Caves | Attracted the attention of an 0b10 checkpoint 15425 | -4/Upper Caves | Encountered a Warlord checkpoint 15435 | -4/Upper Caves | Discovered new exit (range 10) 15438 | -4/Upper Caves | Identified exit to Warlord 15439 | -4/Upper Caves | Learned Research stockpile data 15452 | -4/Upper Caves | Entered Warlord 15480 | -4/Warlord | Opened Warlord's prototype stash 15488 | -4/Warlord | Found Prototype Hackware 15494 | -4/Warlord | Found Prototype Device 15494 | -4/Warlord | Identified Exp. Focal Shield 15501 | -4/Warlord | Found Prototype Processor 15503 | -4/Warlord | Found Prototype Processor 15571 | -4/Warlord | Found Prototype Special Weapon 15571 | -4/Warlord | Identified RU-N14's Throwing Claymores v3 15574 | -4/Warlord | Found RU-N14's Throwing Claymores v3 15600 | -4/Warlord | Rebuked by Warlord 15625 | -4/Warlord | Warlord's base attacked by MAIN.C 15668 | -4/Warlord | Found Prototype Energy Cannon 15668 | -4/Warlord | Identified Vortex Driver 15774 | -4/Warlord | Destroyed 7 combat bots 15827 | -4/Warlord | Warlord forces counterattacked 15879 | -4/Warlord | Destroyed 8 combat bots 15882 | -4/Warlord | Lost 3 allies 15885 | -4/Warlord | Found RU-N14's Throwing Claymores v3 15923 | -4/Warlord | Discovered new exit (range 14) 15925 | -4/Warlord | Spotted Striker 15925 | -4/Warlord | Spotted Executioner 15925 | -4/Warlord | Spotted Executioner 15933 | -4/Warlord | Destroyed Striker 15954 | -4/Warlord | Destroyed 9 combat bots 15956 | -4/Warlord | Build established: Hacker-Sprinter 15969 | -4/Warlord | Lost 5 allies 16025 | -4/Warlord | Spotted Executioner 16025 | -4/Warlord | Spotted Striker 16067 | -4/Warlord | Found Prototype Processor 16070 | -4/Warlord | Identified Exp. Core Analyzer 16104 | -4/Warlord | Lost 14 allies 16141 | -4/Warlord | Found RU-N14's Throwing Claymores v3 16162 | -4/Warlord | Spotted Executioner 16187 | -4/Warlord | Spotted Executioner 16231 | -4/Warlord | Spotted Executioner 16259 | -4/Warlord | Spotted B-90 Cyclops 16275 | -4/Warlord | Spotted Executioner 16277 | -4/Warlord | Lost 3 allies 16300 | -4/Warlord | Warlord base infiltrated, sounded retreat 16311 | -4/Warlord | Attached CPS modules to Enhanced Demolisher. 16343 | -4/Warlord | Lost 3 allies 16399 | -4/Warlord | Attached CPS modules to Enhanced Demolisher. 16400 | -4/Warlord | Spotted Executioner 16432 | -4/Warlord | Lost 5 allies 16434 | -4/Warlord | Spotted Striker 16509 | -4/Warlord | Identified exit to Proximity Caves 16514 | -4/Warlord | Entered Proximity Caves 16611 | -3/Proximity Caves | Spotted B-86 Titan 16671 | -3/Proximity Caves | Discovered new exit (range 7) 16679 | -3/Proximity Caves | Identified exit to Research 16679 | -3/Proximity Caves | Entered Research 16679 | -3/Research | Evolved 2 slots: Utility x2 16680 | -3/Research | Identified System Mapper 16682 | -3/Research | Loaded intel: 25 terminal locations 16735 | -3/Research | Discovered new exit (range 9) 16774 | -3/Research | Lost 4 parts (1n2u1w) 16786 | -3/Research | Identified exit to Quarantine 16837 | -3/Research | Loaded intel: 5 recycling unit locations 16908 | -3/Research | Entered Quarantine 16940 | -3/Quarantine | Found Alien Artifact 16966 | -3/Quarantine | Targeted by mysterious "MATRIX" hacker. 17017 | -3/Quarantine | Spotted Alpha 7 17118 | -3/Quarantine | Found Alien Slashing Weapon 17118 | -3/Quarantine | Identified Sigix Broadsword 17131 | -3/Quarantine | Discovered new exit (range 3) 17132 | -3/Quarantine | Identified exit to Research 17139 | -3/Quarantine | Found Alien Artifact 17144 | -3/Quarantine | Entered Research 17144 | -2/Research | Evolved 2 slots: Power x1, Utility x1 17145 | -2/Research | Identified exit to Testing 17208 | -2/Research | Loaded intel: 5 recycling unit locations 17251 | -2/Research | Spotted B-90 Cyclops 17297 | -2/Research | Entered Testing 17336 | -2/Testing | Spotted PH-3Z6NSZ1I23 17368 | -2/Testing | Spotted Striker 17374 | -2/Testing | Found Prototype Energy Cannon 17374 | -2/Testing | Identified Null Cannon 17382 | -2/Testing | Spotted Striker 17448 | -2/Testing | Found Prototype Ballistic Cannon 17525 | -2/Testing | Local machine network offline 17674 | -2/Testing | Spotted Fortress 17695 | -2/Testing | Discovered new exit (range 6) 17695 | -2/Testing | Discovered new exit (range 6) 17697 | -2/Testing | Identified exit to Protoforge 17698 | -2/Testing | Identified Perforator 17702 | -2/Testing | Entered Protoforge 17714 | -2/Protoforge | Spotted Hotshot 17714 | -2/Protoforge | Spotted Hotshot 17715 | -2/Protoforge | Spotted Hotshot 17715 | -2/Protoforge | Spotted Hotshot 17733 | -2/Protoforge | Spotted B-90 Cyclops 17735 | -2/Protoforge | Superfortress began startup sequence 17878 | -2/Protoforge | Spotted EXE-6 17878 | -2/Protoforge | Spotted EXE-6 17884 | -2/Protoforge | Spotted Decapitator 17885 | -2/Protoforge | Spotted Decapitator 17892 | -2/Protoforge | UFD initiated attack on Protoforge (Readiness: High) 17892 | -2/Protoforge | Loaded intel: 3 recycling unit locations 17915 | -2/Protoforge | Found Exp. Core Analyzer 17917 | -2/Protoforge | Found Prototype Ballistic Gun 17922 | -2/Protoforge | Found Prototype Ballistic Gun 17922 | -2/Protoforge | Identified Cep. XC Strikerail (x2) 17927 | -2/Protoforge | Found Prototype Device 17927 | -2/Protoforge | Identified Exp. Kinecellerator 17929 | -2/Protoforge | Optimus greeted in Protoforge 17965 | -2/Protoforge | Found Exp. Core Analyzer 17967 | -2/Protoforge | Forge Plexus network access discovered 18081 | -2/Protoforge | Met 7R-MNS 18096 | -2/Protoforge | Spotted Striker 18100 | -2/Protoforge | Spotted Striker 18144 | -2/Protoforge | Lost 10 allies 18169 | -2/Protoforge | Spotted Hotshot 18246 | -2/Protoforge | Spotted Striker 18246 | -2/Protoforge | Spotted Striker 18262 | -2/Protoforge | Build established: Scavenger-Sprinter 18286 | -2/Protoforge | UFD reported confirmed Drillbomb installation 18303 | -2/Protoforge | Spotted Striker 18303 | -2/Protoforge | Spotted Executioner 18303 | -2/Protoforge | Spotted Executioner 18389 | -2/Protoforge | Spotted Executioner 18415 | -2/Protoforge | Spotted Striker 18418 | -2/Protoforge | Lost 6 allies 18418 | -2/Protoforge | Spotted Striker 18425 | -2/Protoforge | Spotted Executioner 18428 | -2/Protoforge | Spotted Striker 18489 | -2/Protoforge | Destroyed Executioner 18496 | -2/Protoforge | UFD reported confirmed Drillbomb installation 18627 | -2/Protoforge | Lost 3 parts (1p2u) 18665 | -2/Protoforge | Found Crosscalibrator 18681 | -2/Protoforge | Destroyed 10 combat bots 18681 | -2/Protoforge | Spotted Immortal 18716 | -2/Protoforge | Destroyed Immortal 18720 | -2/Protoforge | Found Exp. Jetlance 18724 | -2/Protoforge | Found Prototype Device 18724 | -2/Protoforge | Identified Cep. Antimissile System 18726 | -2/Protoforge | Found Prototype Device 18726 | -2/Protoforge | Identified Exp. Cloaking Device 18729 | -2/Protoforge | Found Prototype Processor 18729 | -2/Protoforge | Identified Exp. Melee Analysis Suite 18880 | -2/Protoforge | Spotted V271-h 18970 | -2/Protoforge | Spotted Striker 19050 | -2/Protoforge | Spotted V463-w 19051 | -2/Protoforge | Spotted V391-i 19065 | -2/Protoforge | Spotted Decapitator 19065 | -2/Protoforge | Spotted Decapitator 19065 | -2/Protoforge | Spotted Decapitator 19124 | -2/Protoforge | Spotted Immortal 19131 | -2/Protoforge | Spotted Immortal 19169 | -2/Protoforge | Destroyed Immortal 19190 | -2/Protoforge | Destroyed Immortal 19196 | -2/Protoforge | Found Exp. Jetlance 19203 | -2/Protoforge | Found Exp. Jetlance 19206 | -2/Protoforge | Found Cep. Antimissile System 19213 | -2/Protoforge | Spotted Decapitator 19213 | -2/Protoforge | Spotted Decapitator 19222 | -2/Protoforge | Destroyed Decapitator 19226 | -2/Protoforge | Destroyed Decapitator 19374 | -2/Protoforge | UFD reported confirmed Drillbomb installation 19460 | -2/Protoforge | Spotted AP7-3 19460 | -2/Protoforge | Spotted AP7-3 19507 | -2/Protoforge | Destroyed AP7-3 19513 | -2/Protoforge | Destroyed AP7-3 19522 | -2/Protoforge | Found Cep. XC Strikerail 19522 | -2/Protoforge | Found Prototype Device 19522 | -2/Protoforge | Identified Exp. ECM Suite 19533 | -2/Protoforge | Found Exp. ECM Suite 19545 | -2/Protoforge | Found Prototype Processor 19563 | -2/Protoforge | Found Prototype Processor 19563 | -2/Protoforge | Identified Exp. Target Analyzer 19603 | -2/Protoforge | Found Cep. Cloak Mesh 19606 | -2/Protoforge | Found Cep. Dimensional Manipulator 19608 | -2/Protoforge | Found Cep. Core Analysis Suite 19708 | -2/Protoforge | Destroyed Decapitator 19708 | -2/Protoforge | Destroyed Decapitator 19712 | -2/Protoforge | Destroyed Decapitator 19729 | -2/Protoforge | Found Cep. Weapon Articulator 19789 | -2/Protoforge | Spotted V631-i 19790 | -2/Protoforge | Found Cep. Antigrav Storage Unit 19791 | -2/Protoforge | Found Cep. NT7 Matterbank 19795 | -2/Protoforge | Found Prototype Device 19828 | -2/Protoforge | Spotted V197-c 19829 | -2/Protoforge | Found Prototype Device 19870 | -2/Protoforge | Found Faulty Cep. Reaction Jets 19871 | -2/Protoforge | Found Cep. Reaction Jets 19876 | -2/Protoforge | Found Cep. Energy Mantle 19883 | -2/Protoforge | Found Faulty Cep. Energy Mantle 19887 | -2/Protoforge | Found Cep. Hardlight Director 19889 | -2/Protoforge | Found Cep. Hardlight Director 19908 | -2/Protoforge | Additional patrols dispatched to research labs 19910 | -2/Protoforge | Found Cep. Nanofilaments [Tensile] 19911 | -2/Protoforge | Installed Cep. Nanofilaments [Tensile], 3 resistances modified: KI +20%, TH -10%, I +20% 19919 | -2/Protoforge | Found Transdimensional Reconstructor 19924 | -2/Protoforge | Found Cep. Navigation Harness 20129 | -2/Protoforge | Found Cep. Tiamat Rocket Array 20130 | -2/Protoforge | Found Cep. Smart ZDS 20135 | -2/Protoforge | Found Faulty Cep. Smart ZDS 20140 | -2/Protoforge | Found Faulty Cep. Rapid Grenade Launcher 20172 | -2/Protoforge | Identified Cep. Matter Streamer (x2) 20237 | -2/Protoforge | Found Femtoactuators 20238 | -2/Protoforge | Found Mni. Quantum Capacitor 20240 | -2/Protoforge | Found Mni. Quantum Capacitor 20249 | -2/Protoforge | Found Cep. Weapon Articulator 20251 | -2/Protoforge | Found Femtoactuators 20270 | -2/Protoforge | Spotted Immortal 20270 | -2/Protoforge | Spotted Immortal 20350 | -2/Protoforge | Destroyed Immortal 20354 | -2/Protoforge | Found Exp. Jetlance 20420 | -2/Protoforge | Destroyed Immortal 20430 | -2/Protoforge | Spotted V410-m 20443 | -2/Protoforge | Spotted V644-y 20468 | -2/Protoforge | Found Cep. Network Penetrator 20574 | -2/Protoforge | Found Faulty Cep. Thermoelectric Network 20575 | -2/Protoforge | Found Faulty Cep. Thermoelectric Network 20769 | -2/Protoforge | Found Faulty Cep. Zero-point Core 20782 | -2/Protoforge | Spotted V689-k 20806 | -2/Protoforge | Destroyed V689-k 20810 | -2/Protoforge | Found Cep. Zero-point Core 20825 | -2/Protoforge | Found Faulty Cep. Zero-point Core 20833 | -2/Protoforge | Lost 4 parts (1p1n2u) 20960 | -2/Protoforge | UFD reported confirmed Drillbomb installation 21019 | -2/Protoforge | Spotted Decapitator 21019 | -2/Protoforge | Spotted V411-s 21020 | -2/Protoforge | Spotted Decapitator 21039 | -2/Protoforge | Destroyed Decapitator 21048 | -2/Protoforge | Destroyed Decapitator 21258 | -2/Protoforge | Found Cep. Chromion Battery 21268 | -2/Protoforge | Destroyed V197-c 21363 | -2/Protoforge | Found Cep. Plasma Driver 21365 | -2/Protoforge | Found Exp. Jetlance 21366 | -2/Protoforge | Found Cep. Plasma Driver 21368 | -2/Protoforge | Found Faulty Cep. Miniperforator 21369 | -2/Protoforge | Found Faulty Cep. Plasma Driver 21379 | -2/Protoforge | Found Exp. Jetlance 21380 | -2/Protoforge | Found Cep. Plasma Driver 21462 | -2/Protoforge | Identified Subatomic Replicator 21462 | -2/Protoforge | Used Subatomic Replicator to replicate Faulty Cep. Miniperforator 21557 | -2/Protoforge | Spotted Executioner 21557 | -2/Protoforge | Spotted Striker 21760 | -2/Protoforge | Spotted V805-v 21760 | -2/Protoforge | Spotted V521-c 21761 | -2/Protoforge | Found Cep. Biometal Exoskeleton 22077 | -2/Protoforge | Spotted Striker 22077 | -2/Protoforge | Spotted Striker 22081 | -2/Protoforge | Destroyed Striker 22087 | -2/Protoforge | Destroyed Striker 22116 | -2/Protoforge | Spotted Executioner 22116 | -2/Protoforge | Spotted Striker 22126 | -2/Protoforge | Destroyed Executioner 22165 | -2/Protoforge | Destroyed 11 combat bots 22172 | -2/Protoforge | Build established: Mutant 22193 | -2/Protoforge | Spotted Executioner 22195 | -2/Protoforge | Destroyed Executioner 22197 | -2/Protoforge | Spotted Striker 22200 | -2/Protoforge | Destroyed Striker 22207 | -2/Protoforge | Spotted Striker 22208 | -2/Protoforge | Spotted Striker 22210 | -2/Protoforge | Spotted Striker 22213 | -2/Protoforge | Spotted Striker 22215 | -2/Protoforge | Destroyed Striker 22226 | -2/Protoforge | Destroyed Striker 22230 | -2/Protoforge | Destroyed Striker 22265 | -2/Protoforge | Destroyed 15 combat bots 22291 | -2/Protoforge | Found Prototype Processor 22291 | -2/Protoforge | Identified Exp. Targeting Computer 22365 | -2/Protoforge | Destroyed Hotshot 22482 | -2/Protoforge | Spotted Executioner 22483 | -2/Protoforge | Destroyed Executioner 22491 | -2/Protoforge | Spotted Executioner 22492 | -2/Protoforge | Destroyed Executioner 22505 | -2/Protoforge | Spotted Executioner 22507 | -2/Protoforge | Destroyed Executioner 22509 | -2/Protoforge | Spotted Executioner 22509 | -2/Protoforge | Destroyed Executioner 22537 | -2/Protoforge | Destroyed 14 combat bots 22570 | -2/Protoforge | Spotted Executioner 22581 | -2/Protoforge | Spotted Executioner 22585 | -2/Protoforge | Destroyed Executioner 22591 | -2/Protoforge | UFD reported confirmed Drillbomb installation 22623 | -2/Protoforge | UFD reported confirmed Drillbomb installation 22634 | -2/Protoforge | Destroyed 8 combat bots 22642 | -2/Protoforge | Spotted Executioner 22642 | -2/Protoforge | Spotted Striker 22643 | -2/Protoforge | Spotted Executioner 22647 | -2/Protoforge | Spotted Executioner 22651 | -2/Protoforge | Destroyed Executioner 22653 | -2/Protoforge | Destroyed Executioner 22653 | -2/Protoforge | Destroyed Striker 22657 | -2/Protoforge | Destroyed Executioner 22662 | -2/Protoforge | Discovered new exit (range 16) 22667 | -2/Protoforge | Spotted Executioner 22667 | -2/Protoforge | Spotted Executioner 22668 | -2/Protoforge | Destroyed Executioner 22682 | -2/Protoforge | Destroyed Executioner 22703 | -2/Protoforge | Entered Access 22703 | -1/Access | Spotted Executioner 22703 | -1/Access | Spotted Executioner 22703 | -1/Access | Evolved 2 slots: Utility x1, Weapon x1 22705 | -1/Access | Destroyed 15 combat bots 22706 | -1/Access | Destroyed Executioner 22708 | -1/Access | Destroyed Executioner 22711 | -1/Access | Lost 8 allies 22741 | -1/Access | Identified exit to Command 22742 | -1/Access | Found Exp. Core Analyzer 22938 | -1/Access | Unchained authorized (1B-0RG) 22953 | -1/Access | First assault squad dispatched 22994 | -1/Access | Build established: Hacker-Mutant 23295 | -1/Access | High security lockdown imminent 23370 | -1/Access | Destroyed 11 combat bots 23375 | -1/Access | High security lockdown engaged 23533 | -1/Access | Spotted Executioner 23536 | -1/Access | Destroyed Executioner 23564 | -1/Access | Destroyed 16 combat bots 23644 | -1/Access | Spotted Investigator 23647 | -1/Access | Scanned by Researcher 23649 | -1/Access | Destroyed Investigator 23700 | -1/Access | Destroyed 9 combat bots 23731 | -1/Access | Destroyed Executioner 23734 | -1/Access | Destroyed Executioner 23754 | -1/Access | Spotted Striker 23775 | -1/Access | Destroyed Striker 23872 | -1/Access | Destroyed 28 combat bots 23945 | -1/Access | Spotted Executioner 23947 | -1/Access | Destroyed Executioner 23948 | -1/Access | Spotted Executioner 23950 | -1/Access | Destroyed Executioner 23966 | -1/Access | Spotted Striker 23966 | -1/Access | Spotted Striker 23969 | -1/Access | Destroyed Striker 23969 | -1/Access | Destroyed Striker 23996 | -1/Access | Destroyed 9 combat bots 24055 | -1/Access | Spotted Striker 24058 | -1/Access | Spotted Striker 24062 | -1/Access | Destroyed Striker 24068 | -1/Access | Destroyed Striker 24092 | -1/Access | Destroyed 9 combat bots 24103 | -1/Access | Spotted Executioner 24103 | -1/Access | Spotted Executioner 24103 | -1/Access | Destroyed Executioner 24106 | -1/Access | Destroyed Executioner 24131 | -1/Access | Destroyed Executioner 24147 | -1/Access | Spotted Executioner 24147 | -1/Access | Spotted Striker 24149 | -1/Access | Destroyed Executioner 24153 | -1/Access | Spotted Executioner 24153 | -1/Access | Spotted Striker 24157 | -1/Access | Destroyed Executioner 24161 | -1/Access | Destroyed Striker 24161 | -1/Access | Destroyed Striker 24188 | -1/Access | Destroyed 19 combat bots 24203 | -1/Access | Spotted Striker 24203 | -1/Access | Destroyed Striker 24206 | -1/Access | Spotted Striker 24206 | -1/Access | Destroyed Striker 24220 | -1/Access | Spotted Striker 24220 | -1/Access | Spotted Executioner 24227 | -1/Access | Destroyed Executioner 24230 | -1/Access | Spotted Executioner 24234 | -1/Access | Destroyed Striker 24240 | -1/Access | Destroyed Executioner 24243 | -1/Access | Spotted Executioner 24248 | -1/Access | Spotted Executioner 24254 | -1/Access | Spotted Executioner 24254 | -1/Access | Spotted Executioner 24260 | -1/Access | Destroyed Executioner 24260 | -1/Access | Destroyed Executioner 24263 | -1/Access | Destroyed Executioner 24272 | -1/Access | Destroyed Executioner 24301 | -1/Access | Spotted Executioner 24301 | -1/Access | Spotted Striker 24303 | -1/Access | Destroyed Executioner 24303 | -1/Access | Destroyed Striker 24309 | -1/Access | Spotted Striker 24309 | -1/Access | Spotted Striker 24312 | -1/Access | Destroyed Striker 24324 | -1/Access | Destroyed Striker 24330 | -1/Access | Spotted Executioner 24330 | -1/Access | Spotted Executioner 24330 | -1/Access | Destroyed Executioner 24333 | -1/Access | Destroyed Executioner 24379 | -1/Access | Destroyed 43 combat bots 24529 | -1/Access | Spotted Striker 24537 | -1/Access | Destroyed Striker 24540 | -1/Access | Spotted Striker 24540 | -1/Access | Spotted Striker 24540 | -1/Access | Spotted Executioner 24543 | -1/Access | Destroyed Executioner 24552 | -1/Access | Destroyed Striker 24555 | -1/Access | Destroyed Striker 24593 | -1/Access | Spotted Striker 24598 | -1/Access | Destroyed Striker 24630 | -1/Access | Spotted Striker 24633 | -1/Access | Destroyed 33 combat bots 24651 | -1/Access | Destroyed Striker 24760 | -1/Access | Destroyed 9 combat bots 24838 | -1/Access | Spotted Executioner 24840 | -1/Access | Destroyed Executioner 24856 | -1/Access | Spotted Striker 24861 | -1/Access | Destroyed Striker 24872 | -1/Access | Spotted Executioner 24872 | -1/Access | Spotted Striker 24876 | -1/Access | Destroyed Executioner 24877 | -1/Access | Spotted Striker 24877 | -1/Access | Spotted Executioner 24877 | -1/Access | Spotted Executioner 24877 | -1/Access | Spotted Executioner 24879 | -1/Access | Destroyed Striker 24882 | -1/Access | Spotted Striker 24882 | -1/Access | Destroyed Executioner 24883 | -1/Access | Spotted Executioner 24885 | -1/Access | Destroyed Striker 24887 | -1/Access | Spotted Investigator 24889 | -1/Access | Destroyed Striker 24895 | -1/Access | Destroyed Executioner 24898 | -1/Access | Destroyed Executioner 24901 | -1/Access | Destroyed Investigator 24907 | -1/Access | Destroyed Executioner 24911 | -1/Access | Spotted Striker 24922 | -1/Access | Destroyed Striker 24947 | -1/Access | Sterilization system engaged 24948 | -1/Access | Spotted Striker 24948 | -1/Access | Spotted Striker 24952 | -1/Access | Destroyed Striker 24957 | -1/Access | System corruption reached 10% 24960 | -1/Access | Spotted Striker 24970 | -1/Access | Destroyed Striker 24973 | -1/Access | Destroyed Striker 25010 | -1/Access | Destroyed 46 combat bots 25031 | -1/Access | Spotted Executioner 25031 | -1/Access | Spotted Striker 25035 | -1/Access | Destroyed Striker 25047 | -1/Access | Destroyed Executioner 25091 | -1/Access | Destroyed 9 combat bots 25109 | -1/Access | Spotted Striker 25115 | -1/Access | Destroyed Striker 25203 | -1/Access | Spotted Executioner 25247 | -1/Access | Ambient heat levels rising (+10) 25301 | -1/Access | Spotted B-99 Colossus 25307 | -1/Access | Destroyed 16 combat bots 25397 | -1/Access | Ambient heat levels rising (+10) 25465 | -1/Access | Destroyed 8 combat bots 25529 | -1/Access | Entered Command 25779 | -1/Command | First assault squad dispatched 25939 | -1/Command | High security lockdown imminent 25963 | -1/Command | Destroyed 8 combat bots 26019 | -1/Command | High security lockdown engaged 26155 | -1/Command | Spotted Striker 26156 | -1/Command | Spotted Executioner 26159 | -1/Command | Destroyed Executioner 26162 | -1/Command | Destroyed Striker 26198 | -1/Command | Destroyed 12 combat bots 26242 | -1/Command | Spotted Striker 26242 | -1/Command | Destroyed Striker 26244 | -1/Command | Spotted Investigator 26245 | -1/Command | Destroyed Investigator 26350 | -1/Command | Destroyed 26 combat bots 26407 | -1/Command | Spotted Striker 26407 | -1/Command | Spotted Striker 26411 | -1/Command | Destroyed Striker 26417 | -1/Command | Destroyed Striker 26424 | -1/Command | Spotted Investigator 26456 | -1/Command | Destroyed 16 combat bots 26466 | -1/Command | Destroyed Investigator 26476 | -1/Command | Destroyed Executioner 26506 | -1/Command | Destroyed 7 combat bots 26615 | -1/Command | Destroyed 8 combat bots 26775 | -1/Command | Spotted Executioner 26778 | -1/Command | Destroyed Executioner 26799 | -1/Command | Destroyed 8 combat bots 26809 | -1/Command | Spotted Executioner 26809 | -1/Command | Spotted Executioner 26810 | -1/Command | Destroyed Executioner 26813 | -1/Command | Destroyed Executioner 26816 | -1/Command | Spotted Executioner 26816 | -1/Command | Spotted Executioner 26828 | -1/Command | Destroyed Executioner 26831 | -1/Command | Destroyed Executioner 26900 | -1/Command | Spotted Executioner 26903 | -1/Command | Spotted Executioner 26904 | -1/Command | Destroyed Executioner 26910 | -1/Command | Destroyed Executioner 26946 | -1/Command | Destroyed 26 combat bots 26959 | -1/Command | Spotted Striker 26961 | -1/Command | Destroyed Striker 26974 | -1/Command | Spotted Executioner 26975 | -1/Command | Spotted Striker 26981 | -1/Command | Destroyed Striker 26984 | -1/Command | Destroyed Executioner 26993 | -1/Command | Spotted Executioner 26998 | -1/Command | Destroyed Executioner 27033 | -1/Command | Destroyed 13 combat bots 27099 | -1/Command | Destroyed Striker 27180 | -1/Command | Destroyed 7 combat bots 27181 | -1/Command | Spotted Striker 27181 | -1/Command | Spotted Striker 27181 | -1/Command | Spotted Executioner 27183 | -1/Command | Destroyed Striker 27183 | -1/Command | Destroyed Executioner 27186 | -1/Command | Destroyed Striker 27213 | -1/Command | Spotted Striker 27217 | -1/Command | Destroyed Striker 27290 | -1/Command | Destroyed 10 combat bots 27506 | -1/Command | Spotted B-99 Colossus 27817 | -1/Command | Spotted M Guard 27818 | -1/Command | Spotted M Guard 27818 | -1/Command | Spotted Combat Programmer 27819 | -1/Command | Spotted Combat Programmer 27856 | -1/Command | Destroyed Combat Programmer 27861 | -1/Command | Destroyed Combat Programmer 27868 | -1/Command | Build established: Scavenger-Mutant 27874 | -1/Command | Destroyed M Guard 27902 | -1/Command | Destroyed M Guard 27902 | -1/Command | All MAIN.C guards destroyed 27923 | -1/Command | Found Prototype Device 27924 | -1/Command | Identified AEGIS Remote Shield 27928 | -1/Command | Found Prototype Device 27928 | -1/Command | Identified Thermal Barrier 28128 | -1/Command | 0b10 Conduit disabled 28128 | -1/Command | Met MAIN.C 28168 | -1/Command | Destroyed MAIN.C Shell 28170 | -1/Command | MAIN.C activated Command garrisons 28199 | -1/Command | Destroyed MAIN.C 28211 | -1/Command | Discovered new exit (range 34) 28211 | -1/Command | Discovered new exit (range 90) 28211 | -1/Command | Extracted map data and part IDs from MAIN.C's data core 28214 | -1/Command | Found Thermal Barrier 28221 | -1/Command | Found Zero-point Reactor 28236 | -1/Command | Build established: Gladiator 29247 | -1/Command | Found Exp. System Purifier 29250 | -1/Command | Found Exp. Armor Integrity Analyzer 29268 | -1/Command | Found Zero-point Reactor 29271 | -1/Command | Found Zero-point Reactor 29611 | -1/Command | Found Corrupted Quantum Capacitor 29918 | -1/Command | Build established: Mutant 30329 | -1/Command | Phase Generator disabled 30521 | -1/Command | Found Centrium Heavy Armor Plating 30897 | -1/Command | Warped through subspace to slip node 30897 | -1/Command | Discovered new exit (range 5) 30915 | -1/Command | Entered Access_0 30916 | -1/Access_0 | Met Architect 30917 | -1/Access_0 | Architect warped through subspace 30917 | -1/Access_0 | Destroyed A8 30958 | -1/Access_0 | Architect warped through subspace 30993 | -1/Access_0 | Architect warped through subspace 31027 | -1/Access_0 | Architect warped through subspace 31063 | -1/Access_0 | Architect warped through subspace 31089 | -1/Access_0 | Architect warped through subspace 31117 | -1/Access_0 | Architect warped through subspace 31142 | -1/Access_0 | Architect warped through subspace 31164 | -1/Access_0 | Architect warped through subspace 31177 | -1/Access_0 | A6 warped into view 31179 | -1/Access_0 | Architect warped through subspace 31184 | -1/Access_0 | Destroyed A6 31212 | -1/Access_0 | Architect warped through subspace 31233 | -1/Access_0 | Architect warped through subspace 31254 | -1/Access_0 | Architect warped through subspace 31281 | -1/Access_0 | Architect warped through subspace 31291 | -1/Access_0 | Architect warped through subspace 31316 | -1/Access_0 | Subspace Access Node disabled 31318 | -1/Access_0 | Architect warped through subspace 31340 | -1/Access_0 | Architect warped through subspace 31354 | -1/Access_0 | Architect warped through subspace 31358 | -1/Access_0 | Subspace Access Node disabled 31368 | -1/Access_0 | Architect warped through subspace 31380 | -1/Access_0 | Architect warped through subspace 31393 | -1/Access_0 | Architect warped through subspace 31411 | -1/Access_0 | Architect warped through subspace 31422 | -1/Access_0 | Architect warped through subspace 31433 | -1/Access_0 | Subspace Access Node disabled 31442 | -1/Access_0 | Architect warped through subspace 31458 | -1/Access_0 | Architect warped through subspace 31470 | -1/Access_0 | Architect warped through subspace 31480 | -1/Access_0 | Architect warped through subspace 31489 | -1/Access_0 | Architect warped through subspace 31500 | -1/Access_0 | Architect warped through subspace 31511 | -1/Access_0 | Architect warped through subspace 31525 | -1/Access_0 | A5 warped into view 31526 | -1/Access_0 | Destroyed A5 31533 | -1/Access_0 | Architect warped through subspace 31546 | -1/Access_0 | Architect warped through subspace 31564 | -1/Access_0 | Architect warped through subspace 31584 | -1/Access_0 | Found Hpw. Transdimensional Reconstructor 31590 | -1/Access_0 | Architect warped through subspace 31602 | -1/Access_0 | Architect warped through subspace 31622 | -1/Access_0 | Architect warped through subspace 31630 | -1/Access_0 | Architect warped through subspace 31656 | -1/Access_0 | Architect warped through subspace 31673 | -1/Access_0 | Architect warped through subspace 31689 | -1/Access_0 | Architect warped through subspace 31706 | -1/Access_0 | Architect warped through subspace 31726 | -1/Access_0 | Architect warped through subspace 31739 | -1/Access_0 | Architect warped through subspace 31812 | -1/Access_0 | Architect warped through subspace 31830 | -1/Access_0 | Architect warped through subspace 31856 | -1/Access_0 | Destroyed A2 31862 | -1/Access_0 | Architect warped through subspace 31895 | -1/Access_0 | A4 warped into view 31896 | -1/Access_0 | Destroyed A4 31904 | -1/Access_0 | Architect warped through subspace 31939 | -1/Access_0 | Architect warped through subspace 31950 | -1/Access_0 | Started Test 138-B, establishing a local singularity 31950 | -1/Access_0 | Singularity Gate disabled 31974 | -1/Access_0 | Architect warped through subspace 32003 | -1/Access_0 | Architect warped through subspace 32025 | -1/Access_0 | Architect warped through subspace 32031 | -1/Access_0 | Extracted Singularity Gate Test 138-C access codes from A2's data core 32044 | -1/Access_0 | Architect warped through subspace 32062 | -1/Access_0 | Architect warped through subspace 32083 | -1/Access_0 | Architect warped through subspace 32090 | -1/Access_0 | Found Exp. Phase Shifter 32120 | -1/Access_0 | Subspace Access Node disabled 32134 | -1/Access_0 | Destroyed Architect 32148 | -1/Access_0 | Extracted unknown sensor trigger ID from Architect's data core 32152 | -1/Access_0 | Found Hpw. Transdimensional Reconstructor 32167 | -1/Access_0 | Found Integrated Dissipator 32168 | -1/Access_0 | Installed Integrated Dissipator, increased core heat dissipation (+20) 32426 | -1/Access_0 | Found Hvy. Regenerative Plating 32447 | -1/Access_0 | Build established: Scavenger-Mutant 32782 | -1/Access_0 | Found Exp. Powered Armor 32961 | -1/Access_0 | Found Exp. Weapon Cycler 33002 | -1/Access_0 | Found Exp. Targeting Computer 33064 | -1/Access_0 | Found Exp. Phase Shifter 33210 | -1/Access_0 | A3 warped into view 33218 | -1/Access_0 | Destroyed A3 33232 | -1/Access_0 | Found Prototype Ballistic Gun 33233 | -1/Access_0 | Identified A3's Sniper Rifle 33410 | -1/Access_0 | Found Integrated Mediator 33410 | -1/Access_0 | Installed Integrated Mediator, increased core attachment efficiency 33842 | -1/Access_0 | Found Sigix Corpse 34239 | -1/Access_0 | Warped through subspace to slip node 34239 | -1/Access_0 | Discovered new exit (range 8) 34240 | -1/Access_0 | Core integrity fell below 50% 34249 | *** | Establishing 0b11! Last Messages --------------- (Meltdown). 33674_ Adv. Heat Sink melted. 33674_ Exp. Thermal Shield melted. 33674_ Adv. Heat Sink melted. 33675_ Plasma Slug penetrates Enhanced Grunt. 33678_ Enhanced Grunt destroyed. 33836_ Plasma Slug penetrates Analysis Chamber. 33836_ Analysis Chamber breached. 33842_ Dropped Enh. Nova Cannon. 33842_ Acquired Sigix Corpse. 33869_ Acquired 5 matter. 33996_ System corrupted: Heat flow error (+148). 34067_ Plasma Slug penetrates Wall. 34068_ Plasma Slug penetrates Earth. 34214_ System corrupted: Energy discharge (-145). 34239_ Warped through subspace, drawn to slip node. 34239_ EXIT=FOUND Map ----- +----------------------------------------------------+ | | | | | | | | | | | | | | | | | | | | | | | | | | | | | | | | | ?????????????????????????????????????????????????? | | ?????????????????????????????????????????????????? | | ?????????????????????????????????????????????????? | | ?????????????????????????????????????????????????? | | ?????????????????????????????????????????????????? | | ?????????????????????????????????????????????????? | | ????????????????????????###??????????????????????? | | ???????????????????????## ##?????????????????????? | | ???????????????????????# #?????????????????????? | | ???????????????????????# @ #?????????????????????? | | ??????????????????????## #?????????????????????? | | ??????????????????????# #?????????????????????? | | ??????????????????????# ##?????????????????????? | | ??????????????????????## #?????????????????????? | | ??????????????????????# #?????????????????????? | | ??????????????????????# ##?????????????????????? | | ??????????????????????# < #?????????????????????? | | ??????????????????????# ##?????????????????????? | | ??????????????????????## #??????????????????????? | | ???????????????????????####??????????????????????? | | ?????????????????????????????????????????????????? | | ?????????????????????????????????????????????????? | | ?????????????????????????????????????????????????? | | ?????????????????????????????????????????????????? | | ?????????????????????????????????????????????????? | | ?????????????????????????????????????????????????? | | ?????????????????????????????????????????????????? | | ?????????????????????????????????????????????????? | | ?????????????????????????????????????????????????? | | ?????????????????????????????????????????????????? | | ?????????????????????????????????????????????????? | | ?????????????????????????????????????????????????? | | ?????????????????????????????????????????????????? | | ?????????????????????????????????????????????????? | +----------------------------------------------------+ Best States ------------- Heat Dissipation 108 Energy Generation 99 Energy Capacity 1520 Matter Stores 413 Matter Capacity 1050 Sight Range 24 Robot Scan Range 20 Terrain Scan Density 10 Jamming Range 16 Cloak Strength 8 Additional Mass Support 30 EM Shielding 3 Corruption Containment 12 Armor Coverage 675 Resistance: KI 50 Resistance: TH 40 Resistance: I 20 Weapon Shielding 90 Point Defense Rating 480 Weapon Cycling 25 Melee Speed Boost 50 Phase Shifting 20 Evasion (%) 93 Targeting Accuracy 42 Melee Accuracy 12 Core Analysis 12 Armor Integrity Analysis 50 Recoil Reduction 3 Particle Charging 20 Kinecelleration 66 Salvage Targeting 5 Offensive Hacking 50 Defensive Hacking 14 Authchip Count 1 Item Schematics ----------------- Imp. Flight Unit | -8/Recycling | Hacked Combat Drone Bay | -6/Data Miner | Free Lgt. Regenerative Plating | -6/Data Miner | Free Enh. Flexi-carbon Leg | -6/Data Miner | Free Prc. Energy Filter | -6/Data Miner | Free Cld. Plasma Rifle | -6/Data Miner | Free Imp. Heavy Treads | -6/Data Miner | Free Quantum Capacitor | -6/Data Miner | Free HERF Cannon | -6/Data Miner | Free Imp. Coolant Injector | -6/Data Miner | Free Adv. Particle Charger | -6/Data Miner | Free Railgun | -6/Data Miner | Free Nova Cannon | -6/Data Miner | Free Cld. Cesium-ion Thruster | -5/Factory | Scanalyzed Assault Drone Bay | -5/Zhirov | Free Exp. Heat Sink | -5/Zhirov | Free Exp. Optical Array | -5/Zhirov | Free Imp. Arc Thrower | -5/Zhirov | Free Exp. Energy Well | -2/Testing | Archive Hds. Centrium Leg | -2/Testing | Archive Hvy. Neutron Cannon | -2/Protoforge | Archive Hvy. Proton Cannon | -2/Protoforge | Archive Gravity Flail | -2/Protoforge | Archive Ragnarok Missile Launcher | -2/Protoforge | Archive Nanosword | -2/Protoforge | Archive Imp. Quantum Reactor | -2/Protoforge | Archive Hds. Centrium Heavy Treads | -2/Protoforge | Archive Spectral Analyzer | -2/Protoforge | Archive Enh. Armored Heavy Treads | -2/Protoforge | Archive Exp. Myomer Leg | -2/Protoforge | Archive Robot Schematics ------------------ Y-54 Guardian | -6/Data Miner | Free H-66 Slayer | -6/Data Miner | Free Y-64 Sentinel | -6/Data Miner | Free R-10 Processor | -6/Data Miner | Free B-60 Warrior | -6/Data Miner | Free G-50 Soldier | -6/Data Miner | Free K-01 Serf | -2/Protoforge | Archive A-27 Freighter | -2/Protoforge | Archive T-07 Excavator | -2/Protoforge | Archive A-15 Conveyor | -2/Protoforge | Archive G-73 Enforcer | -2/Protoforge | Archive D-83 Annihilator | -2/Protoforge | Archive Fabricated ------------ Nothing Repaired ---------- Lgt. Armor Plating | 42% | -9/Materials Hrd. Medium Armor Plating | 15% | -8/Storage Studied --------- Lgt. Treads | -9/Materials | Hacked Autogun | -9/Materials | Hacked Hvy. Assault Rifle | -9/Materials | Hacked Lgt. Nuclear Core | -8/Materials | Hacked Nuclear Pulse Thruster | -6/Factory | Hacked Nuclear Pulse Array | -5/Factory | Hacked Lrn. Missile Launcher | -5/Factory | Hacked Impulse Thruster Array | -3/Quarantine | Hacked Field Propulsion Array | -2/Testing | Hacked Alien Tech Used ----------------- Core Expander Transdimensional Reconstructor Integrated Reactor Sigix Broadsword Concept Nanofilaments [Tensile] Subatomic Replicator Integrated Dissipator Integrated Mediator High-powered Transdimensional Reconstructor Achievements -------------- None Challenges ------------ None Game ------ Seed NovaComponentSubcomponent Manual? 0 Play Time 08:52:55 Cumulative 444.1 hours Start 2026.04.15 @ 22:26:17 End 2026.04.17 @ 01:03:21 Sessions 3 Manual Loads 0 Difficulty Rogue Special Mode None Game No. 176 Rogue 176 Adventurer 0 Explorer 0 Win Type 1 Total 34 Types 2/6/13/0/0/1/9/0/1/2 Lore% 84 Gallery% 69 Achievement% 64 Wizard Run 0 Options --------- Layout 1 ASCII 0 Keyboard 0 Movement Arrows Keybinds 0 Fullscreen 2 Font 24/Terminus Map View 50x35 Zoom Use 0% Tactical HUD 1 Map Filters NONE Filters NONE Steam 1 RUN: da333688-cdb5-46fe-8717-7ce94088f0ea